Workbook

Sheet Items
A1: Item | B1: V | C1: W | D1: X | E1: Y | F1: Z
A2: IRT A | B2: 1.7 | C2: 0.9 | D2: 1.8 | E2: 2 | F2: 1.2
A3: IRT B | B3: -1.9 | C3: -0.6 | D3: 0 | E3: 0.9 | F3: 1.8
A4: IRT C | B4: 0 | C4: 0.2 | D4: 0.1 | E4: 0.2 | F4: 0
A5: Included | B5: 1 | C5: 1 | D5: 1 | E5: 1 | F5: 1
A6: Correct | B6: 0 | C6: 0 | D6: 1 | E6: 0 | F6: 1

Sheet Curves
A1: Theta | B1: V | C1: W | D1: X | E1: Y | F1: Z
A2: -6 | B2: =Items!B$4+(1-Items!B$4)/(1+EXP(-Items!B$2*($A2-Items!B$3))) -> 0.0009387707871 | C2: =Items!C$4+(1-Items!C$4)/(1+EXP(-Items!C$2*($A2-Items!C$3))) -> 0.2061527007 | D2: =Items!D$4+(1-Items!D$4)/(1+EXP(-Items!D$2*($A2-Items!D$3))) -> 0.1000183592 | E2: =Items!E$4+(1-Items!E$4)/(1+EXP(-Items!E$2*($A2-Items!E$3))) -> 0.2000008125 | F2: =Items!F$4+(1-Items!F$4)/(1+EXP(-Items!F$2*($A2-Items!F$3))) -> 8.609268613e-05
A3: -5.9 | B3: =Items!B$4+(1-Items!B$4)/(1+EXP(-Items!B$2*($A3-Items!B$3))) -> 0.001112536033 | C3: =Items!C$4+(1-Items!C$4)/(1+EXP(-Items!C$2*($A3-Items!C$3))) -> 0.2067272545 | D3: =Items!D$4+(1-Items!D$4)/(1+EXP(-Items!D$2*($A3-Items!D$3))) -> 0.1000219798 | E3: =Items!E$4+(1-Items!E$4)/(1+EXP(-Items!E$2*($A3-Items!E$3))) -> 0.2000009924 | F3: =Items!F$4+(1-Items!F$4)/(1+EXP(-Items!F$2*($A3-Items!F$3))) -> 9.706816708e-05
A4: -5.8 | B4: =Items!B$4+(1-Items!B$4)/(1+EXP(-Items!B$2*($A4-Items!B$3))) -> 0.001318422553 | C4: =Items!C$4+(1-Items!C$4)/(1+EXP(-Items!C$2*($A4-Items!C$3))) -> 0.2073549643 | D4: =Items!D$4+(1-Items!D$4)/(1+EXP(-Items!D$2*($A4-Items!D$3))) -> 0.1000263145 | E4: =Items!E$4+(1-Items!E$4)/(1+EXP(-Items!E$2*($A4-Items!E$3))) -> 0.2000012121 | F4: =Items!F$4+(1-Items!F$4)/(1+EXP(-Items!F$2*($A4-Items!F$3))) -> 0.0001094426983
A5: -5.7 | B5: =Items!B$4+(1-Items!B$4)/(1+EXP(-Items!B$2*($A5-Items!B$3))) -> 0.00156235095 | C5: =Items!C$4+(1-Items!C$4)/(1+EXP(-Items!C$2*($A5-Items!C$3))) -> 0.2080406511 | D5: =Items!D$4+(1-Items!D$4)/(1+EXP(-Items!D$2*($A5-Items!D$3))) -> 0.100031504 | E5: =Items!E$4+(1-Items!E$4)/(1+EXP(-Items!E$2*($A5-Items!E$3))) -> 0.2000014805 | F5: =Items!F$4+(1-Items!F$4)/(1+EXP(-Items!F$2*($A5-Items!F$3))) -> 0.000123394576
A6: -5.6 | B6: =Items!B$4+(1-Items!B$4)/(1+EXP(-Items!B$2*($A6-Items!B$3))) -> 0.001851326181 | C6: =Items!C$4+(1-Items!C$4)/(1+EXP(-Items!C$2*($A6-Items!C$3))) -> 0.2087895541 | D6: =Items!D$4+(1-Items!D$4)/(1+EXP(-Items!D$2*($A6-Items!D$3))) -> 0.1000377169 | E6: =Items!E$4+(1-Items!E$4)/(1+EXP(-Items!E$2*($A6-Items!E$3))) -> 0.2000018083 | F6: =Items!F$4+(1-Items!F$4)/(1+EXP(-Items!F$2*($A6-Items!F$3))) -> 0.0001391248072
A7: -5.5 | B7: =Items!B$4+(1-Items!B$4)/(1+EXP(-Items!B$2*($A7-Items!B$3))) -> 0.002193633357 | C7: =Items!C$4+(1-Items!C$4)/(1+EXP(-Items!C$2*($A7-Items!C$3))) -> 0.2096073634 | D7: =Items!D$4+(1-Items!D$4)/(1+EXP(-Items!D$2*($A7-Items!D$3))) -> 0.1000451549 | E7: =Items!E$4+(1-Items!E$4)/(1+EXP(-Items!E$2*($A7-Items!E$3))) -> 0.2000022086 | F7: =Items!F$4+(1-Items!F$4)/(1+EXP(-Items!F$2*($A7-Items!F$3))) -> 0.0001568599997
A8: -5.4 | B8: =Items!B$4+(1-Items!B$4)/(1+EXP(-Items!B$2*($A8-Items!B$3))) -> 0.002599067762 | C8: =Items!C$4+(1-Items!C$4)/(1+EXP(-Items!C$2*($A8-Items!C$3))) -> 0.2105002547 | D8: =Items!D$4+(1-Items!D$4)/(1+EXP(-Items!D$2*($A8-Items!D$3))) -> 0.1000540598 | E8: =Items!E$4+(1-Items!E$4)/(1+EXP(-Items!E$2*($A8-Items!E$3))) -> 0.2000026976 | F8: =Items!F$4+(1-Items!F$4)/(1+EXP(-Items!F$2*($A8-Items!F$3))) -> 0.0001768556188
A9: -5.3 | B9: =Items!B$4+(1-Items!B$4)/(1+EXP(-Items!B$2*($A9-Items!B$3))) -> 0.003079204621 | C9: =Items!C$4+(1-Items!C$4)/(1+EXP(-Items!C$2*($A9-Items!C$3))) -> 0.2114749249 | D9: =Items!D$4+(1-Items!D$4)/(1+EXP(-Items!D$2*($A9-Items!D$3))) -> 0.1000647205 | E9: =Items!E$4+(1-Items!E$4)/(1+EXP(-Items!E$2*($A9-Items!E$3))) -> 0.2000032949 | F9: =Items!F$4+(1-Items!F$4)/(1+EXP(-Items!F$2*($A9-Items!F$3))) -> 0.0001993996572
A10: -5.2 | B10: =Items!B$4+(1-Items!B$4)/(1+EXP(-Items!B$2*($A10-Items!B$3))) -> 0.003647714821 | C10: =Items!C$4+(1-Items!C$4)/(1+EXP(-Items!C$2*($A10-Items!C$3))) -> 0.2125386305 | D10: =Items!D$4+(1-Items!D$4)/(1+EXP(-Items!D$2*($A10-Items!D$3))) -> 0.1000774834 | E10: =Items!E$4+(1-Items!E$4)/(1+EXP(-Items!E$2*($A10-Items!E$3))) -> 0.2000040243 | F10: =Items!F$4+(1-Items!F$4)/(1+EXP(-Items!F$2*($A10-Items!F$3))) -> 0.0002248167702
A11: -5.1 | B11: =Items!B$4+(1-Items!B$4)/(1+EXP(-Items!B$2*($A11-Items!B$3))) -> 0.00432073352 | C11: =Items!C$4+(1-Items!C$4)/(1+EXP(-Items!C$2*($A11-Items!C$3))) -> 0.2136992267 | D11: =Items!D$4+(1-Items!D$4)/(1+EXP(-Items!D$2*($A11-Items!D$3))) -> 0.1000927629 | E11: =Items!E$4+(1-Items!E$4)/(1+EXP(-Items!E$2*($A11-Items!E$3))) -> 0.2000049153 | F11: =Items!F$4+(1-Items!F$4)/(1+EXP(-Items!F$2*($A11-Items!F$3))) -> 0.0002534729352
A12: -5 | B12: =Items!B$4+(1-Items!B$4)/(1+EXP(-Items!B$2*($A12-Items!B$3))) -> 0.00511728923 | C12: =Items!C$4+(1-Items!C$4)/(1+EXP(-Items!C$2*($A12-Items!C$3))) -> 0.214965208 | D12: =Items!D$4+(1-Items!D$4)/(1+EXP(-Items!D$2*($A12-Items!D$3))) -> 0.1001110551 | E12: =Items!E$4+(1-Items!E$4)/(1+EXP(-Items!E$2*($A12-Items!E$3))) -> 0.2000060036 | F12: =Items!F$4+(1-Items!F$4)/(1+EXP(-Items!F$2*($A12-Items!F$3))) -> 0.0002857807008
A13: -4.9 | B13: =Items!B$4+(1-Items!B$4)/(1+EXP(-Items!B$2*($A13-Items!B$3))) -> 0.006059801492 | C13: =Items!C$4+(1-Items!C$4)/(1+EXP(-Items!C$2*($A13-Items!C$3))) -> 0.2163457499 | D13: =Items!D$4+(1-Items!D$4)/(1+EXP(-Items!D$2*($A13-Items!D$3))) -> 0.1001329539 | E13: =Items!E$4+(1-Items!E$4)/(1+EXP(-Items!E$2*($A13-Items!E$3))) -> 0.2000073328 | F13: =Items!F$4+(1-Items!F$4)/(1+EXP(-Items!F$2*($A13-Items!F$3))) -> 0.0003222051005
A14: -4.8 | B14: =Items!B$4+(1-Items!B$4)/(1+EXP(-Items!B$2*($A14-Items!B$3))) -> 0.007174655609 | C14: =Items!C$4+(1-Items!C$4)/(1+EXP(-Items!C$2*($A14-Items!C$3))) -> 0.217850751 | D14: =Items!D$4+(1-Items!D$4)/(1+EXP(-Items!D$2*($A14-Items!D$3))) -> 0.1001591701 | E14: =Items!E$4+(1-Items!E$4)/(1+EXP(-Items!E$2*($A14-Items!E$3))) -> 0.2000089563 | F14: =Items!F$4+(1-Items!F$4)/(1+EXP(-Items!F$2*($A14-Items!F$3))) -> 0.0003632703132
A15: -4.7 | B15: =Items!B$4+(1-Items!B$4)/(1+EXP(-Items!B$2*($A15-Items!B$3))) -> 0.008492862852 | C15: =Items!C$4+(1-Items!C$4)/(1+EXP(-Items!C$2*($A15-Items!C$3))) -> 0.2194908755 | D15: =Items!D$4+(1-Items!D$4)/(1+EXP(-Items!D$2*($A15-Items!D$3))) -> 0.1001905545 | E15: =Items!E$4+(1-Items!E$4)/(1+EXP(-Items!E$2*($A15-Items!E$3))) -> 0.2000109392 | F15: =Items!F$4+(1-Items!F$4)/(1+EXP(-Items!F$2*($A15-Items!F$3))) -> 0.000409567165
A16: -4.6 | B16: =Items!B$4+(1-Items!B$4)/(1+EXP(-Items!B$2*($A16-Items!B$3))) -> 0.01005081388 | C16: =Items!C$4+(1-Items!C$4)/(1+EXP(-Items!C$2*($A16-Items!C$3))) -> 0.2212775949 | D16: =Items!D$4+(1-Items!D$4)/(1+EXP(-Items!D$2*($A16-Items!D$3))) -> 0.1002281256 | E16: =Items!E$4+(1-Items!E$4)/(1+EXP(-Items!E$2*($A16-Items!E$3))) -> 0.2000133611 | F16: =Items!F$4+(1-Items!F$4)/(1+EXP(-Items!F$2*($A16-Items!F$3))) -> 0.0004617615765
A17: -4.5 | B17: =Items!B$4+(1-Items!B$4)/(1+EXP(-Items!B$2*($A17-Items!B$3))) -> 0.01189113164 | C17: =Items!C$4+(1-Items!C$4)/(1+EXP(-Items!C$2*($A17-Items!C$3))) -> 0.2232232287 | D17: =Items!D$4+(1-Items!D$4)/(1+EXP(-Items!D$2*($A17-Items!D$3))) -> 0.1002731023 | E17: =Items!E$4+(1-Items!E$4)/(1+EXP(-Items!E$2*($A17-Items!E$3))) -> 0.2000163193 | F17: =Items!F$4+(1-Items!F$4)/(1+EXP(-Items!F$2*($A17-Items!F$3))) -> 0.0005206040741
A18: -4.4 | B18: =Items!B$4+(1-Items!B$4)/(1+EXP(-Items!B$2*($A18-Items!B$3))) -> 0.01406362704 | C18: =Items!C$4+(1-Items!C$4)/(1+EXP(-Items!C$2*($A18-Items!C$3))) -> 0.2253409827 | D18: =Items!D$4+(1-Items!D$4)/(1+EXP(-Items!D$2*($A18-Items!D$3))) -> 0.1003269433 | E18: =Items!E$4+(1-Items!E$4)/(1+EXP(-Items!E$2*($A18-Items!E$3))) -> 0.2000199323 | F18: =Items!F$4+(1-Items!F$4)/(1+EXP(-Items!F$2*($A18-Items!F$3))) -> 0.0005869404961
A19: -4.3 | B19: =Items!B$4+(1-Items!B$4)/(1+EXP(-Items!B$2*($A19-Items!B$3))) -> 0.01662635611 | C19: =Items!C$4+(1-Items!C$4)/(1+EXP(-Items!C$2*($A19-Items!C$3))) -> 0.2276449842 | D19: =Items!D$4+(1-Items!D$4)/(1+EXP(-Items!D$2*($A19-Items!D$3))) -> 0.1003913941 | E19: =Items!E$4+(1-Items!E$4)/(1+EXP(-Items!E$2*($A19-Items!E$3))) -> 0.2000243452 | F19: =Items!F$4+(1-Items!F$4)/(1+EXP(-Items!F$2*($A19-Items!F$3))) -> 0.0006617240426
A20: -4.2 | B20: =Items!B$4+(1-Items!B$4)/(1+EXP(-Items!B$2*($A20-Items!B$3))) -> 0.01964676995 | C20: =Items!C$4+(1-Items!C$4)/(1+EXP(-Items!C$2*($A20-Items!C$3))) -> 0.2301503124 | D20: =Items!D$4+(1-Items!D$4)/(1+EXP(-Items!D$2*($A20-Items!D$3))) -> 0.1004685437 | E20: =Items!E$4+(1-Items!E$4)/(1+EXP(-Items!E$2*($A20-Items!E$3))) -> 0.2000297351 | F20: =Items!F$4+(1-Items!F$4)/(1+EXP(-Items!F$2*($A20-Items!F$3))) -> 0.0007460288338
A21: -4.1 | B21: =Items!B$4+(1-Items!B$4)/(1+EXP(-Items!B$2*($A21-Items!B$3))) -> 0.02320293815 | C21: =Items!C$4+(1-Items!C$4)/(1+EXP(-Items!C$2*($A21-Items!C$3))) -> 0.2328730226 | D21: =Items!D$4+(1-Items!D$4)/(1+EXP(-Items!D$2*($A21-Items!D$3))) -> 0.100560891 | E21: =Items!E$4+(1-Items!E$4)/(1+EXP(-Items!E$2*($A21-Items!E$3))) -> 0.2000363183 | F21: =Items!F$4+(1-Items!F$4)/(1+EXP(-Items!F$2*($A21-Items!F$3))) -> 0.0008410651623
A22: -4 | B22: =Items!B$4+(1-Items!B$4)/(1+EXP(-Items!B$2*($A22-Items!B$3))) -> 0.02738481095 | C22: =Items!C$4+(1-Items!C$4)/(1+EXP(-Items!C$2*($A22-Items!C$3))) -> 0.2358301624 | D22: =Items!D$4+(1-Items!D$4)/(1+EXP(-Items!D$2*($A22-Items!D$3))) -> 0.100671426 | E22: =Items!E$4+(1-Items!E$4)/(1+EXP(-Items!E$2*($A22-Items!E$3))) -> 0.2000443588 | F22: =Items!F$4+(1-Items!F$4)/(1+EXP(-Items!F$2*($A22-Items!F$3))) -> 0.0009481966444
A23: -3.9 | B23: =Items!B$4+(1-Items!B$4)/(1+EXP(-Items!B$2*($A23-Items!B$3))) -> 0.0322954647 | C23: =Items!C$4+(1-Items!C$4)/(1+EXP(-Items!C$2*($A23-Items!C$3))) -> 0.2390397784 | D23: =Items!D$4+(1-Items!D$4)/(1+EXP(-Items!D$2*($A23-Items!D$3))) -> 0.1008037246 | E23: =Items!E$4+(1-Items!E$4)/(1+EXP(-Items!E$2*($A23-Items!E$3))) -> 0.2000541793 | F23: =Items!F$4+(1-Items!F$4)/(1+EXP(-Items!F$2*($A23-Items!F$3))) -> 0.001068959502
A24: -3.8 | B24: =Items!B$4+(1-Items!B$4)/(1+EXP(-Items!B$2*($A24-Items!B$3))) -> 0.03805224707 | C24: =Items!C$4+(1-Items!C$4)/(1+EXP(-Items!C$2*($A24-Items!C$3))) -> 0.2425209091 | D24: =Items!D$4+(1-Items!D$4)/(1+EXP(-Items!D$2*($A24-Items!D$3))) -> 0.1009620636 | E24: =Items!E$4+(1-Items!E$4)/(1+EXP(-Items!E$2*($A24-Items!E$3))) -> 0.2000661738 | F24: =Items!F$4+(1-Items!F$4)/(1+EXP(-Items!F$2*($A24-Items!F$3))) -> 0.001205084234
A25: -3.7 | B25: =Items!B$4+(1-Items!B$4)/(1+EXP(-Items!B$2*($A25-Items!B$3))) -> 0.04478770305 | C25: =Items!C$4+(1-Items!C$4)/(1+EXP(-Items!C$2*($A25-Items!C$3))) -> 0.2462935642 | D25: =Items!D$4+(1-Items!D$4)/(1+EXP(-Items!D$2*($A25-Items!D$3))) -> 0.1011515564 | E25: =Items!E$4+(1-Items!E$4)/(1+EXP(-Items!E$2*($A25-Items!E$3))) -> 0.2000808234 | F25: =Items!F$4+(1-Items!F$4)/(1+EXP(-Items!F$2*($A25-Items!F$3))) -> 0.00135851995
A26: -3.6 | B26: =Items!B$4+(1-Items!B$4)/(1+EXP(-Items!B$2*($A26-Items!B$3))) -> 0.05265011844 | C26: =Items!C$4+(1-Items!C$4)/(1+EXP(-Items!C$2*($A26-Items!C$3))) -> 0.2503786848 | D26: =Items!D$4+(1-Items!D$4)/(1+EXP(-Items!D$2*($A26-Items!D$3))) -> 0.1013783155 | E26: =Items!E$4+(1-Items!E$4)/(1+EXP(-Items!E$2*($A26-Items!E$3))) -> 0.2000987157 | F26: =Items!F$4+(1-Items!F$4)/(1+EXP(-Items!F$2*($A26-Items!F$3))) -> 0.001531461707
A27: -3.5 | B27: =Items!B$4+(1-Items!B$4)/(1+EXP(-Items!B$2*($A27-Items!B$3))) -> 0.06180346626 | C27: =Items!C$4+(1-Items!C$4)/(1+EXP(-Items!C$2*($A27-Items!C$3))) -> 0.254798083 | D27: =Items!D$4+(1-Items!D$4)/(1+EXP(-Items!D$2*($A27-Items!D$3))) -> 0.101649645 | E27: =Items!E$4+(1-Items!E$4)/(1+EXP(-Items!E$2*($A27-Items!E$3))) -> 0.2001205683 | F27: =Items!F$4+(1-Items!F$4)/(1+EXP(-Items!F$2*($A27-Items!F$3))) -> 0.001726381166
A28: -3.4 | B28: =Items!B$4+(1-Items!B$4)/(1+EXP(-Items!B$2*($A28-Items!B$3))) -> 0.07242648536 | C28: =Items!C$4+(1-Items!C$4)/(1+EXP(-Items!C$2*($A28-Items!C$3))) -> 0.2595743561 | D28: =Items!D$4+(1-Items!D$4)/(1+EXP(-Items!D$2*($A28-Items!D$3))) -> 0.10197427 | E28: =Items!E$4+(1-Items!E$4)/(1+EXP(-Items!E$2*($A28-Items!E$3))) -> 0.2001472575 | F28: =Items!F$4+(1-Items!F$4)/(1+EXP(-Items!F$2*($A28-Items!F$3))) -> 0.001946060985
A29: -3.3 | B29: =Items!B$4+(1-Items!B$4)/(1+EXP(-Items!B$2*($A29-Items!B$3))) -> 0.08471056573 | C29: =Items!C$4+(1-Items!C$4)/(1+EXP(-Items!C$2*($A29-Items!C$3))) -> 0.2647307738 | D29: =Items!D$4+(1-Items!D$4)/(1+EXP(-Items!D$2*($A29-Items!D$3))) -> 0.1023626082 | E29: =Items!E$4+(1-Items!E$4)/(1+EXP(-Items!E$2*($A29-Items!E$3))) -> 0.2001798534 | F29: =Items!F$4+(1-Items!F$4)/(1+EXP(-Items!F$2*($A29-Items!F$3))) -> 0.002193633357
A30: -3.2 | B30: =Items!B$4+(1-Items!B$4)/(1+EXP(-Items!B$2*($A30-Items!B$3))) -> 0.09885607318 | C30: =Items!C$4+(1-Items!C$4)/(1+EXP(-Items!C$2*($A30-Items!C$3))) -> 0.2702911319 | D30: =Items!D$4+(1-Items!D$4)/(1+EXP(-Items!D$2*($A30-Items!D$3))) -> 0.102827092 | E30: =Items!E$4+(1-Items!E$4)/(1+EXP(-Items!E$2*($A30-Items!E$3))) -> 0.2002196625 | F30: =Items!F$4+(1-Items!F$4)/(1+EXP(-Items!F$2*($A30-Items!F$3))) -> 0.002472623157
A31: -3.1 | B31: =Items!B$4+(1-Items!B$4)/(1+EXP(-Items!B$2*($A31-Items!B$3))) -> 0.115066732 | C31: =Items!C$4+(1-Items!C$4)/(1+EXP(-Items!C$2*($A31-Items!C$3))) -> 0.2762795719 | D31: =Items!D$4+(1-Items!D$4)/(1+EXP(-Items!D$2*($A31-Items!D$3))) -> 0.1033825481 | E31: =Items!E$4+(1-Items!E$4)/(1+EXP(-Items!E$2*($A31-Items!E$3))) -> 0.2002682801 | F31: =Items!F$4+(1-Items!F$4)/(1+EXP(-Items!F$2*($A31-Items!F$3))) -> 0.002786996219
A32: -3 | B32: =Items!B$4+(1-Items!B$4)/(1+EXP(-Items!B$2*($A32-Items!B$3))) -> 0.1335417225 | C32: =Items!C$4+(1-Items!C$4)/(1+EXP(-Items!C$2*($A32-Items!C$3))) -> 0.2827203612 | D32: =Items!D$4+(1-Items!D$4)/(1+EXP(-Items!D$2*($A32-Items!D$3))) -> 0.1040466458 | E32: =Items!E$4+(1-Items!E$4)/(1+EXP(-Items!E$2*($A32-Items!E$3))) -> 0.2003276537 | F32: =Items!F$4+(1-Items!F$4)/(1+EXP(-Items!F$2*($A32-Items!F$3))) -> 0.003141213285
A33: -2.9 | B33: =Items!B$4+(1-Items!B$4)/(1+EXP(-Items!B$2*($A33-Items!B$3))) -> 0.1544652651 | C33: =Items!C$4+(1-Items!C$4)/(1+EXP(-Items!C$2*($A33-Items!C$3))) -> 0.2896376308 | D33: =Items!D$4+(1-Items!D$4)/(1+EXP(-Items!D$2*($A33-Items!D$3))) -> 0.1048404225 | E33: =Items!E$4+(1-Items!E$4)/(1+EXP(-Items!E$2*($A33-Items!E$3))) -> 0.2004001609 | F33: =Items!F$4+(1-Items!F$4)/(1+EXP(-Items!F$2*($A33-Items!F$3))) -> 0.003540290221
A34: -2.8 | B34: =Items!B$4+(1-Items!B$4)/(1+EXP(-Items!B$2*($A34-Items!B$3))) -> 0.1779936858 | C34: =Items!C$4+(1-Items!C$4)/(1+EXP(-Items!C$2*($A34-Items!C$3))) -> 0.2970550703 | D34: =Items!D$4+(1-Items!D$4)/(1+EXP(-Items!D$2*($A34-Items!D$3))) -> 0.1057888976 | E34: =Items!E$4+(1-Items!E$4)/(1+EXP(-Items!E$2*($A34-Items!E$3))) -> 0.2004887035 | F34: =Items!F$4+(1-Items!F$4)/(1+EXP(-Items!F$2*($A34-Items!F$3))) -> 0.003989865149
A35: -2.7 | B35: =Items!B$4+(1-Items!B$4)/(1+EXP(-Items!B$2*($A35-Items!B$3))) -> 0.2042403023 | C35: =Items!C$4+(1-Items!C$4)/(1+EXP(-Items!C$2*($A35-Items!C$3))) -> 0.3049955756 | D35: =Items!D$4+(1-Items!D$4)/(1+EXP(-Items!D$2*($A35-Items!D$3))) -> 0.1069217883 | E35: =Items!E$4+(1-Items!E$4)/(1+EXP(-Items!E$2*($A35-Items!E$3))) -> 0.2005968231 | F35: =Items!F$4+(1-Items!F$4)/(1+EXP(-Items!F$2*($A35-Items!F$3))) -> 0.004496273161
A36: -2.6 | B36: =Items!B$4+(1-Items!B$4)/(1+EXP(-Items!B$2*($A36-Items!B$3))) -> 0.2332589358 | C36: =Items!C$4+(1-Items!C$4)/(1+EXP(-Items!C$2*($A36-Items!C$3))) -> 0.3134808519 | D36: =Items!D$4+(1-Items!D$4)/(1+EXP(-Items!D$2*($A36-Items!D$3))) -> 0.1082743348 | E36: =Items!E$4+(1-Items!E$4)/(1+EXP(-Items!E$2*($A36-Items!E$3))) -> 0.200728841 | F36: =Items!F$4+(1-Items!F$4)/(1+EXP(-Items!F$2*($A36-Items!F$3))) -> 0.005066629333
A37: -2.5 | B37: =Items!B$4+(1-Items!B$4)/(1+EXP(-Items!B$2*($A37-Items!B$3))) -> 0.2650274005 | C37: =Items!C$4+(1-Items!C$4)/(1+EXP(-Items!C$2*($A37-Items!C$3))) -> 0.3225309726 | D37: =Items!D$4+(1-Items!D$4)/(1+EXP(-Items!D$2*($A37-Items!D$3))) -> 0.1098882484 | E37: =Items!E$4+(1-Items!E$4)/(1+EXP(-Items!E$2*($A37-Items!E$3))) -> 0.2008900288 | F37: =Items!F$4+(1-Items!F$4)/(1+EXP(-Items!F$2*($A37-Items!F$3))) -> 0.005708920777
A38: -2.4 | B38: =Items!B$4+(1-Items!B$4)/(1+EXP(-Items!B$2*($A38-Items!B$3))) -> 0.2994328575 | C38: =Items!C$4+(1-Items!C$4)/(1+EXP(-Items!C$2*($A38-Items!C$3))) -> 0.3321638962 | D38: =Items!D$4+(1-Items!D$4)/(1+EXP(-Items!D$2*($A38-Items!D$3))) -> 0.1118127865 | E38: =Items!E$4+(1-Items!E$4)/(1+EXP(-Items!E$2*($A38-Items!E$3))) -> 0.201086816 | F38: =Items!F$4+(1-Items!F$4)/(1+EXP(-Items!F$2*($A38-Items!F$3))) -> 0.006432108467
A39: -2.3 | B39: =Items!B$4+(1-Items!B$4)/(1+EXP(-Items!B$2*($A39-Items!B$3))) -> 0.3362613026 | C39: =Items!C$4+(1-Items!C$4)/(1+EXP(-Items!C$2*($A39-Items!C$3))) -> 0.3423949486 | D39: =Items!D$4+(1-Items!D$4)/(1+EXP(-Items!D$2*($A39-Items!D$3))) -> 0.1141059593 | E39: =Items!E$4+(1-Items!E$4)/(1+EXP(-Items!E$2*($A39-Items!E$3))) -> 0.2013270409 | F39: =Items!F$4+(1-Items!F$4)/(1+EXP(-Items!F$2*($A39-Items!F$3))) -> 0.007246239596
A40: -2.2 | B40: =Items!B$4+(1-Items!B$4)/(1+EXP(-Items!B$2*($A40-Items!B$3))) -> 0.3751935255 | C40: =Items!C$4+(1-Items!C$4)/(1+EXP(-Items!C$2*($A40-Items!C$3))) -> 0.3532362788 | D40: =Items!D$4+(1-Items!D$4)/(1+EXP(-Items!D$2*($A40-Items!D$3))) -> 0.116835859 | E40: =Items!E$4+(1-Items!E$4)/(1+EXP(-Items!E$2*($A40-Items!E$3))) -> 0.2016202563 | F40: =Items!F$4+(1-Items!F$4)/(1+EXP(-Items!F$2*($A40-Items!F$3))) -> 0.008162571153
A41: -2.1 | B41: =Items!B$4+(1-Items!B$4)/(1+EXP(-Items!B$2*($A41-Items!B$3))) -> 0.4158094771 | C41: =Items!C$4+(1-Items!C$4)/(1+EXP(-Items!C$2*($A41-Items!C$3))) -> 0.3646962974 | D41: =Items!D$4+(1-Items!D$4)/(1+EXP(-Items!D$2*($A41-Items!D$3))) -> 0.1200820948 | E41: =Items!E$4+(1-Items!E$4)/(1+EXP(-Items!E$2*($A41-Items!E$3))) -> 0.2019780985 | F41: =Items!F$4+(1-Items!F$4)/(1+EXP(-Items!F$2*($A41-Items!F$3))) -> 0.009193705367
A42: -2 | B42: =Items!B$4+(1-Items!B$4)/(1+EXP(-Items!B$2*($A42-Items!B$3))) -> 0.4576020592 | C42: =Items!C$4+(1-Items!C$4)/(1+EXP(-Items!C$2*($A42-Items!C$3))) -> 0.3767791138 | D42: =Items!D$4+(1-Items!D$4)/(1+EXP(-Items!D$2*($A42-Items!D$3))) -> 0.1239372942 | E42: =Items!E$4+(1-Items!E$4)/(1+EXP(-Items!E$2*($A42-Items!E$3))) -> 0.2024147331 | F42: =Items!F$4+(1-Items!F$4)/(1+EXP(-Items!F$2*($A42-Items!F$3))) -> 0.01035373753
A43: -1.9 | B43: =Items!B$4+(1-Items!B$4)/(1+EXP(-Items!B$2*($A43-Items!B$3))) -> 0.5 | C43: =Items!C$4+(1-Items!C$4)/(1+EXP(-Items!C$2*($A43-Items!C$3))) -> 0.3894839874 | D43: =Items!D$4+(1-Items!D$4)/(1+EXP(-Items!D$2*($A43-Items!D$3))) -> 0.1285086055 | E43: =Items!E$4+(1-Items!E$4)/(1+EXP(-Items!E$2*($A43-Items!E$3))) -> 0.2029473919 | F43: =Items!F$4+(1-Items!F$4)/(1+EXP(-Items!F$2*($A43-Items!F$3))) -> 0.01165841655
A44: -1.8 | B44: =Items!B$4+(1-Items!B$4)/(1+EXP(-Items!B$2*($A44-Items!B$3))) -> 0.5423979408 | C44: =Items!C$4+(1-Items!C$4)/(1+EXP(-Items!C$2*($A44-Items!C$3))) -> 0.4028048133 | D44: =Items!D$4+(1-Items!D$4)/(1+EXP(-Items!D$2*($A44-Items!D$3))) -> 0.1339191015 | E44: =Items!E$4+(1-Items!E$4)/(1+EXP(-Items!E$2*($A44-Items!E$3))) -> 0.2035970185 | F44: =Items!F$4+(1-Items!F$4)/(1+EXP(-Items!F$2*($A44-Items!F$3))) -> 0.01312531834
A45: -1.7 | B45: =Items!B$4+(1-Items!B$4)/(1+EXP(-Items!B$2*($A45-Items!B$3))) -> 0.5841905229 | C45: =Items!C$4+(1-Items!C$4)/(1+EXP(-Items!C$2*($A45-Items!C$3))) -> 0.4167296621 | D45: =Items!D$4+(1-Items!D$4)/(1+EXP(-Items!D$2*($A45-Items!D$3))) -> 0.1403089327 | E45: =Items!E$4+(1-Items!E$4)/(1+EXP(-Items!E$2*($A45-Items!E$3))) -> 0.2043890391 | F45: =Items!F$4+(1-Items!F$4)/(1+EXP(-Items!F$2*($A45-Items!F$3))) -> 0.01477403169
A46: -1.6 | B46: =Items!B$4+(1-Items!B$4)/(1+EXP(-Items!B$2*($A46-Items!B$3))) -> 0.6248064745 | C46: =Items!C$4+(1-Items!C$4)/(1+EXP(-Items!C$2*($A46-Items!C$3))) -> 0.4312403979 | D46: =Items!D$4+(1-Items!D$4)/(1+EXP(-Items!D$2*($A46-Items!D$3))) -> 0.1478360228 | E46: =Items!E$4+(1-Items!E$4)/(1+EXP(-Items!E$2*($A46-Items!E$3))) -> 0.2053542807 | F46: =Items!F$4+(1-Items!F$4)/(1+EXP(-Items!F$2*($A46-Items!F$3))) -> 0.01662635611
A47: -1.5 | B47: =Items!B$4+(1-Items!B$4)/(1+EXP(-Items!B$2*($A47-Items!B$3))) -> 0.6637386974 | C47: =Items!C$4+(1-Items!C$4)/(1+EXP(-Items!C$2*($A47-Items!C$3))) -> 0.4463123966 | D47: =Items!D$4+(1-Items!D$4)/(1+EXP(-Items!D$2*($A47-Items!D$3))) -> 0.1566760205 | E47: =Items!E$4+(1-Items!E$4)/(1+EXP(-Items!E$2*($A47-Items!E$3))) -> 0.2065300569 | F47: =Items!F$4+(1-Items!F$4)/(1+EXP(-Items!F$2*($A47-Items!F$3))) -> 0.01870650995
A48: -1.4 | B48: =Items!B$4+(1-Items!B$4)/(1+EXP(-Items!B$2*($A48-Items!B$3))) -> 0.7005671425 | C48: =Items!C$4+(1-Items!C$4)/(1+EXP(-Items!C$2*($A48-Items!C$3))) -> 0.4619143863 | D48: =Items!D$4+(1-Items!D$4)/(1+EXP(-Items!D$2*($A48-Items!D$3))) -> 0.1670211506 | E48: =Items!E$4+(1-Items!E$4)/(1+EXP(-Items!E$2*($A48-Items!E$3))) -> 0.2079614415 | F48: =Items!F$4+(1-Items!F$4)/(1+EXP(-Items!F$2*($A48-Items!F$3))) -> 0.02104134702
A49: -1.3 | B49: =Items!B$4+(1-Items!B$4)/(1+EXP(-Items!B$2*($A49-Items!B$3))) -> 0.7349725995 | C49: =Items!C$4+(1-Items!C$4)/(1+EXP(-Items!C$2*($A49-Items!C$3))) -> 0.4780084302 | D49: =Items!D$4+(1-Items!D$4)/(1+EXP(-Items!D$2*($A49-Items!D$3))) -> 0.1790775233 | E49: =Items!E$4+(1-Items!E$4)/(1+EXP(-Items!E$2*($A49-Items!E$3))) -> 0.209702748 | F49: =Items!F$4+(1-Items!F$4)/(1+EXP(-Items!F$2*($A49-Items!F$3))) -> 0.02366057816
A50: -1.2 | B50: =Items!B$4+(1-Items!B$4)/(1+EXP(-Items!B$2*($A50-Items!B$3))) -> 0.7667410642 | C50: =Items!C$4+(1-Items!C$4)/(1+EXP(-Items!C$2*($A50-Items!C$3))) -> 0.4945500658 | D50: =Items!D$4+(1-Items!D$4)/(1+EXP(-Items!D$2*($A50-Items!D$3))) -> 0.1930604063 | E50: =Items!E$4+(1-Items!E$4)/(1+EXP(-Items!E$2*($A50-Items!E$3))) -> 0.2118192254 | F50: =Items!F$4+(1-Items!F$4)/(1+EXP(-Items!F$2*($A50-Items!F$3))) -> 0.02659699358
A51: -1.1 | B51: =Items!B$4+(1-Items!B$4)/(1+EXP(-Items!B$2*($A51-Items!B$3))) -> 0.7957596977 | C51: =Items!C$4+(1-Items!C$4)/(1+EXP(-Items!C$2*($A51-Items!C$3))) -> 0.5114886128 | D51: =Items!D$4+(1-Items!D$4)/(1+EXP(-Items!D$2*($A51-Items!D$3))) -> 0.2091869541 | E51: =Items!E$4+(1-Items!E$4)/(1+EXP(-Items!E$2*($A51-Items!E$3))) -> 0.214388968 | F51: =Items!F$4+(1-Items!F$4)/(1+EXP(-Items!F$2*($A51-Items!F$3))) -> 0.0298866798
A52: -1 | B52: =Items!B$4+(1-Items!B$4)/(1+EXP(-Items!B$2*($A52-Items!B$3))) -> 0.8220063142 | C52: =Items!C$4+(1-Items!C$4)/(1+EXP(-Items!C$2*($A52-Items!C$3))) -> 0.5287676528 | D52: =Items!D$4+(1-Items!D$4)/(1+EXP(-Items!D$2*($A52-Items!D$3))) -> 0.2276659584 | E52: =Items!E$4+(1-Items!E$4)/(1+EXP(-Items!E$2*($A52-Items!E$3))) -> 0.2175050167 | F52: =Items!F$4+(1-Items!F$4)/(1+EXP(-Items!F$2*($A52-Items!F$3))) -> 0.03356922328
A53: -0.9 | B53: =Items!B$4+(1-Items!B$4)/(1+EXP(-Items!B$2*($A53-Items!B$3))) -> 0.8455347349 | C53: =Items!C$4+(1-Items!C$4)/(1+EXP(-Items!C$2*($A53-Items!C$3))) -> 0.546325676 | D53: =Items!D$4+(1-Items!D$4)/(1+EXP(-Items!D$2*($A53-Items!D$3))) -> 0.2486843832 | E53: =Items!E$4+(1-Items!E$4)/(1+EXP(-Items!E$2*($A53-Items!E$3))) -> 0.2212775949 | F53: =Items!F$4+(1-Items!F$4)/(1+EXP(-Items!F$2*($A53-Items!F$3))) -> 0.03768789051
A54: -0.8 | B54: =Items!B$4+(1-Items!B$4)/(1+EXP(-Items!B$2*($A54-Items!B$3))) -> 0.8664582775 | C54: =Items!C$4+(1-Items!C$4)/(1+EXP(-Items!C$2*($A54-Items!C$3))) -> 0.5640968861 | D54: =Items!D$4+(1-Items!D$4)/(1+EXP(-Items!D$2*($A54-Items!D$3))) -> 0.2723908137 | E54: =Items!E$4+(1-Items!E$4)/(1+EXP(-Items!E$2*($A54-Items!E$3))) -> 0.2258363718 | F54: =Items!F$4+(1-Items!F$4)/(1+EXP(-Items!F$2*($A54-Items!F$3))) -> 0.04228977184
A55: -0.7 | B55: =Items!B$4+(1-Items!B$4)/(1+EXP(-Items!B$2*($A55-Items!B$3))) -> 0.884933268 | C55: =Items!C$4+(1-Items!C$4)/(1+EXP(-Items!C$2*($A55-Items!C$3))) -> 0.5820121402 | D55: =Items!D$4+(1-Items!D$4)/(1+EXP(-Items!D$2*($A55-Items!D$3))) -> 0.298876503 | E55: =Items!E$4+(1-Items!E$4)/(1+EXP(-Items!E$2*($A55-Items!E$3))) -> 0.2313325782 | F55: =Items!F$4+(1-Items!F$4)/(1+EXP(-Items!F$2*($A55-Items!F$3))) -> 0.04742587318
A56: -0.6 | B56: =Items!B$4+(1-Items!B$4)/(1+EXP(-Items!B$2*($A56-Items!B$3))) -> 0.9011439268 | C56: =Items!C$4+(1-Items!C$4)/(1+EXP(-Items!C$2*($A56-Items!C$3))) -> 0.6 | D56: =Items!D$4+(1-Items!D$4)/(1+EXP(-Items!D$2*($A56-Items!D$3))) -> 0.328155415 | E56: =Items!E$4+(1-Items!E$4)/(1+EXP(-Items!E$2*($A56-Items!E$3))) -> 0.2379406985 | F56: =Items!F$4+(1-Items!F$4)/(1+EXP(-Items!F$2*($A56-Items!F$3))) -> 0.0531511364
A57: -0.5 | B57: =Items!B$4+(1-Items!B$4)/(1+EXP(-Items!B$2*($A57-Items!B$3))) -> 0.9152894343 | C57: =Items!C$4+(1-Items!C$4)/(1+EXP(-Items!C$2*($A57-Items!C$3))) -> 0.6179878598 | D57: =Items!D$4+(1-Items!D$4)/(1+EXP(-Items!D$2*($A57-Items!D$3))) -> 0.3601454476 | E57: =Items!E$4+(1-Items!E$4)/(1+EXP(-Items!E$2*($A57-Items!E$3))) -> 0.2458593407 | F57: =Items!F$4+(1-Items!F$4)/(1+EXP(-Items!F$2*($A57-Items!F$3))) -> 0.05952436598
A58: -0.4 | B58: =Items!B$4+(1-Items!B$4)/(1+EXP(-Items!B$2*($A58-Items!B$3))) -> 0.9275735146 | C58: =Items!C$4+(1-Items!C$4)/(1+EXP(-Items!C$2*($A58-Items!C$3))) -> 0.6359031139 | D58: =Items!D$4+(1-Items!D$4)/(1+EXP(-Items!D$2*($A58-Items!D$3))) -> 0.3946536846 | E58: =Items!E$4+(1-Items!E$4)/(1+EXP(-Items!E$2*($A58-Items!E$3))) -> 0.2553107363 | F58: =Items!F$4+(1-Items!F$4)/(1+EXP(-Items!F$2*($A58-Items!F$3))) -> 0.06660803558
A59: -0.3 | B59: =Items!B$4+(1-Items!B$4)/(1+EXP(-Items!B$2*($A59-Items!B$3))) -> 0.9381965337 | C59: =Items!C$4+(1-Items!C$4)/(1+EXP(-Items!C$2*($A59-Items!C$3))) -> 0.653674324 | D59: =Items!D$4+(1-Items!D$4)/(1+EXP(-Items!D$2*($A59-Items!D$3))) -> 0.431368824 | E59: =Items!E$4+(1-Items!E$4)/(1+EXP(-Items!E$2*($A59-Items!E$3))) -> 0.2665381572 | F59: =Items!F$4+(1-Items!F$4)/(1+EXP(-Items!F$2*($A59-Items!F$3))) -> 0.07446794517
A60: -0.2 | B60: =Items!B$4+(1-Items!B$4)/(1+EXP(-Items!B$2*($A60-Items!B$3))) -> 0.9473498816 | C60: =Items!C$4+(1-Items!C$4)/(1+EXP(-Items!C$2*($A60-Items!C$3))) -> 0.6712323472 | D60: =Items!D$4+(1-Items!D$4)/(1+EXP(-Items!D$2*($A60-Items!D$3))) -> 0.4698636093 | E60: =Items!E$4+(1-Items!E$4)/(1+EXP(-Items!E$2*($A60-Items!E$3))) -> 0.2798003913 | F60: =Items!F$4+(1-Items!F$4)/(1+EXP(-Items!F$2*($A60-Items!F$3))) -> 0.08317269649
A61: -0.1 | B61: =Items!B$4+(1-Items!B$4)/(1+EXP(-Items!B$2*($A61-Items!B$3))) -> 0.955212297 | C61: =Items!C$4+(1-Items!C$4)/(1+EXP(-Items!C$2*($A61-Items!C$3))) -> 0.6885113872 | D61: =Items!D$4+(1-Items!D$4)/(1+EXP(-Items!D$2*($A61-Items!D$3))) -> 0.5096089969 | E61: =Items!E$4+(1-Items!E$4)/(1+EXP(-Items!E$2*($A61-Items!E$3))) -> 0.2953623376 | F61: =Items!F$4+(1-Items!F$4)/(1+EXP(-Items!F$2*($A61-Items!F$3))) -> 0.09279295312
A62: -2.042810365e-14 | B62: =Items!B$4+(1-Items!B$4)/(1+EXP(-Items!B$2*($A62-Items!B$3))) -> 0.9619477529 | C62: =Items!C$4+(1-Items!C$4)/(1+EXP(-Items!C$2*($A62-Items!C$3))) -> 0.7054499342 | D62: =Items!D$4+(1-Items!D$4)/(1+EXP(-Items!D$2*($A62-Items!D$3))) -> 0.55 | E62: =Items!E$4+(1-Items!E$4)/(1+EXP(-Items!E$2*($A62-Items!E$3))) -> 0.3134808519 | F62: =Items!F$4+(1-Items!F$4)/(1+EXP(-Items!F$2*($A62-Items!F$3))) -> 0.1034004515
A63: 0.1 | B63: =Items!B$4+(1-Items!B$4)/(1+EXP(-Items!B$2*($A63-Items!B$3))) -> 0.9677045353 | C63: =Items!C$4+(1-Items!C$4)/(1+EXP(-Items!C$2*($A63-Items!C$3))) -> 0.7219915698 | D63: =Items!D$4+(1-Items!D$4)/(1+EXP(-Items!D$2*($A63-Items!D$3))) -> 0.5903910031 | E63: =Items!E$4+(1-Items!E$4)/(1+EXP(-Items!E$2*($A63-Items!E$3))) -> 0.3343852919 | F63: =Items!F$4+(1-Items!F$4)/(1+EXP(-Items!F$2*($A63-Items!F$3))) -> 0.115066732
A64: 0.2 | B64: =Items!B$4+(1-Items!B$4)/(1+EXP(-Items!B$2*($A64-Items!B$3))) -> 0.972615189 | C64: =Items!C$4+(1-Items!C$4)/(1+EXP(-Items!C$2*($A64-Items!C$3))) -> 0.7380856137 | D64: =Items!D$4+(1-Items!D$4)/(1+EXP(-Items!D$2*($A64-Items!D$3))) -> 0.6301363907 | E64: =Items!E$4+(1-Items!E$4)/(1+EXP(-Items!E$2*($A64-Items!E$3))) -> 0.3582528892 | F64: =Items!F$4+(1-Items!F$4)/(1+EXP(-Items!F$2*($A64-Items!F$3))) -> 0.1278615663
A65: 0.3 | B65: =Items!B$4+(1-Items!B$4)/(1+EXP(-Items!B$2*($A65-Items!B$3))) -> 0.9767970619 | C65: =Items!C$4+(1-Items!C$4)/(1+EXP(-Items!C$2*($A65-Items!C$3))) -> 0.7536876034 | D65: =Items!D$4+(1-Items!D$4)/(1+EXP(-Items!D$2*($A65-Items!D$3))) -> 0.668631176 | E65: =Items!E$4+(1-Items!E$4)/(1+EXP(-Items!E$2*($A65-Items!E$3))) -> 0.3851801732 | F65: =Items!F$4+(1-Items!F$4)/(1+EXP(-Items!F$2*($A65-Items!F$3))) -> 0.1418510649
A66: 0.4 | B66: =Items!B$4+(1-Items!B$4)/(1+EXP(-Items!B$2*($A66-Items!B$3))) -> 0.9803532301 | C66: =Items!C$4+(1-Items!C$4)/(1+EXP(-Items!C$2*($A66-Items!C$3))) -> 0.7687596021 | D66: =Items!D$4+(1-Items!D$4)/(1+EXP(-Items!D$2*($A66-Items!D$3))) -> 0.7053463154 | E66: =Items!E$4+(1-Items!E$4)/(1+EXP(-Items!E$2*($A66-Items!E$3))) -> 0.4151531371 | F66: =Items!F$4+(1-Items!F$4)/(1+EXP(-Items!F$2*($A66-Items!F$3))) -> 0.1570954689
A67: 0.5 | B67: =Items!B$4+(1-Items!B$4)/(1+EXP(-Items!B$2*($A67-Items!B$3))) -> 0.9833736439 | C67: =Items!C$4+(1-Items!C$4)/(1+EXP(-Items!C$2*($A67-Items!C$3))) -> 0.7832703379 | D67: =Items!D$4+(1-Items!D$4)/(1+EXP(-Items!D$2*($A67-Items!D$3))) -> 0.7398545524 | E67: =Items!E$4+(1-Items!E$4)/(1+EXP(-Items!E$2*($A67-Items!E$3))) -> 0.4480204151 | F67: =Items!F$4+(1-Items!F$4)/(1+EXP(-Items!F$2*($A67-Items!F$3))) -> 0.173646647
A68: 0.6 | B68: =Items!B$4+(1-Items!B$4)/(1+EXP(-Items!B$2*($A68-Items!B$3))) -> 0.985936373 | C68: =Items!C$4+(1-Items!C$4)/(1+EXP(-Items!C$2*($A68-Items!C$3))) -> 0.7971951867 | D68: =Items!D$4+(1-Items!D$4)/(1+EXP(-Items!D$2*($A68-Items!D$3))) -> 0.771844585 | E68: =Items!E$4+(1-Items!E$4)/(1+EXP(-Items!E$2*($A68-Items!E$3))) -> 0.483474955 | F68: =Items!F$4+(1-Items!F$4)/(1+EXP(-Items!F$2*($A68-Items!F$3))) -> 0.1915453486
A69: 0.7 | B69: =Items!B$4+(1-Items!B$4)/(1+EXP(-Items!B$2*($A69-Items!B$3))) -> 0.9881088684 | C69: =Items!C$4+(1-Items!C$4)/(1+EXP(-Items!C$2*($A69-Items!C$3))) -> 0.8105160126 | D69: =Items!D$4+(1-Items!D$4)/(1+EXP(-Items!D$2*($A69-Items!D$3))) -> 0.801123497 | E69: =Items!E$4+(1-Items!E$4)/(1+EXP(-Items!E$2*($A69-Items!E$3))) -> 0.5210498719 | F69: =Items!F$4+(1-Items!F$4)/(1+EXP(-Items!F$2*($A69-Items!F$3))) -> 0.2108182935
A70: 0.8 | B70: =Items!B$4+(1-Items!B$4)/(1+EXP(-Items!B$2*($A70-Items!B$3))) -> 0.9899491861 | C70: =Items!C$4+(1-Items!C$4)/(1+EXP(-Items!C$2*($A70-Items!C$3))) -> 0.8232208862 | D70: =Items!D$4+(1-Items!D$4)/(1+EXP(-Items!D$2*($A70-Items!D$3))) -> 0.8276091863 | E70: =Items!E$4+(1-Items!E$4)/(1+EXP(-Items!E$2*($A70-Items!E$3))) -> 0.5601328022 | F70: =Items!F$4+(1-Items!F$4)/(1+EXP(-Items!F$2*($A70-Items!F$3))) -> 0.2314752165
A71: 0.9 | B71: =Items!B$4+(1-Items!B$4)/(1+EXP(-Items!B$2*($A71-Items!B$3))) -> 0.9915071371 | C71: =Items!C$4+(1-Items!C$4)/(1+EXP(-Items!C$2*($A71-Items!C$3))) -> 0.8353037026 | D71: =Items!D$4+(1-Items!D$4)/(1+EXP(-Items!D$2*($A71-Items!D$3))) -> 0.8513156168 | E71: =Items!E$4+(1-Items!E$4)/(1+EXP(-Items!E$2*($A71-Items!E$3))) -> 0.6 | F71: =Items!F$4+(1-Items!F$4)/(1+EXP(-Items!F$2*($A71-Items!F$3))) -> 0.2535060167
A72: 1 | B72: =Items!B$4+(1-Items!B$4)/(1+EXP(-Items!B$2*($A72-Items!B$3))) -> 0.9928253444 | C72: =Items!C$4+(1-Items!C$4)/(1+EXP(-Items!C$2*($A72-Items!C$3))) -> 0.8467637212 | D72: =Items!D$4+(1-Items!D$4)/(1+EXP(-Items!D$2*($A72-Items!D$3))) -> 0.8723340416 | E72: =Items!E$4+(1-Items!E$4)/(1+EXP(-Items!E$2*($A72-Items!E$3))) -> 0.6398671978 | F72: =Items!F$4+(1-Items!F$4)/(1+EXP(-Items!F$2*($A72-Items!F$3))) -> 0.2768781949
A73: 1.1 | B73: =Items!B$4+(1-Items!B$4)/(1+EXP(-Items!B$2*($A73-Items!B$3))) -> 0.9939401985 | C73: =Items!C$4+(1-Items!C$4)/(1+EXP(-Items!C$2*($A73-Items!C$3))) -> 0.8576050514 | D73: =Items!D$4+(1-Items!D$4)/(1+EXP(-Items!D$2*($A73-Items!D$3))) -> 0.8908130459 | E73: =Items!E$4+(1-Items!E$4)/(1+EXP(-Items!E$2*($A73-Items!E$3))) -> 0.6789501281 | F73: =Items!F$4+(1-Items!F$4)/(1+EXP(-Items!F$2*($A73-Items!F$3))) -> 0.301534784
A74: 1.2 | B74: =Items!B$4+(1-Items!B$4)/(1+EXP(-Items!B$2*($A74-Items!B$3))) -> 0.9948827108 | C74: =Items!C$4+(1-Items!C$4)/(1+EXP(-Items!C$2*($A74-Items!C$3))) -> 0.8678361038 | D74: =Items!D$4+(1-Items!D$4)/(1+EXP(-Items!D$2*($A74-Items!D$3))) -> 0.9069395937 | E74: =Items!E$4+(1-Items!E$4)/(1+EXP(-Items!E$2*($A74-Items!E$3))) -> 0.716525045 | F74: =Items!F$4+(1-Items!F$4)/(1+EXP(-Items!F$2*($A74-Items!F$3))) -> 0.3273929829
A75: 1.3 | B75: =Items!B$4+(1-Items!B$4)/(1+EXP(-Items!B$2*($A75-Items!B$3))) -> 0.9956792665 | C75: =Items!C$4+(1-Items!C$4)/(1+EXP(-Items!C$2*($A75-Items!C$3))) -> 0.8774690274 | D75: =Items!D$4+(1-Items!D$4)/(1+EXP(-Items!D$2*($A75-Items!D$3))) -> 0.9209224767 | E75: =Items!E$4+(1-Items!E$4)/(1+EXP(-Items!E$2*($A75-Items!E$3))) -> 0.7519795849 | F75: =Items!F$4+(1-Items!F$4)/(1+EXP(-Items!F$2*($A75-Items!F$3))) -> 0.3543436938
A76: 1.4 | B76: =Items!B$4+(1-Items!B$4)/(1+EXP(-Items!B$2*($A76-Items!B$3))) -> 0.9963522852 | C76: =Items!C$4+(1-Items!C$4)/(1+EXP(-Items!C$2*($A76-Items!C$3))) -> 0.8865191481 | D76: =Items!D$4+(1-Items!D$4)/(1+EXP(-Items!D$2*($A76-Items!D$3))) -> 0.9329788494 | E76: =Items!E$4+(1-Items!E$4)/(1+EXP(-Items!E$2*($A76-Items!E$3))) -> 0.7848468629 | F76: =Items!F$4+(1-Items!F$4)/(1+EXP(-Items!F$2*($A76-Items!F$3))) -> 0.3822521252
A77: 1.5 | B77: =Items!B$4+(1-Items!B$4)/(1+EXP(-Items!B$2*($A77-Items!B$3))) -> 0.9969207954 | C77: =Items!C$4+(1-Items!C$4)/(1+EXP(-Items!C$2*($A77-Items!C$3))) -> 0.8950044244 | D77: =Items!D$4+(1-Items!D$4)/(1+EXP(-Items!D$2*($A77-Items!D$3))) -> 0.9433239795 | E77: =Items!E$4+(1-Items!E$4)/(1+EXP(-Items!E$2*($A77-Items!E$3))) -> 0.8148198268 | F77: =Items!F$4+(1-Items!F$4)/(1+EXP(-Items!F$2*($A77-Items!F$3))) -> 0.4109595659
A78: 1.6 | B78: =Items!B$4+(1-Items!B$4)/(1+EXP(-Items!B$2*($A78-Items!B$3))) -> 0.9974009322 | C78: =Items!C$4+(1-Items!C$4)/(1+EXP(-Items!C$2*($A78-Items!C$3))) -> 0.9029449297 | D78: =Items!D$4+(1-Items!D$4)/(1+EXP(-Items!D$2*($A78-Items!D$3))) -> 0.9521639772 | E78: =Items!E$4+(1-Items!E$4)/(1+EXP(-Items!E$2*($A78-Items!E$3))) -> 0.8417471108 | F78: =Items!F$4+(1-Items!F$4)/(1+EXP(-Items!F$2*($A78-Items!F$3))) -> 0.4402863507
A79: 1.7 | B79: =Items!B$4+(1-Items!B$4)/(1+EXP(-Items!B$2*($A79-Items!B$3))) -> 0.9978063666 | C79: =Items!C$4+(1-Items!C$4)/(1+EXP(-Items!C$2*($A79-Items!C$3))) -> 0.9103623692 | D79: =Items!D$4+(1-Items!D$4)/(1+EXP(-Items!D$2*($A79-Items!D$3))) -> 0.9596910673 | E79: =Items!E$4+(1-Items!E$4)/(1+EXP(-Items!E$2*($A79-Items!E$3))) -> 0.8656147081 | F79: =Items!F$4+(1-Items!F$4)/(1+EXP(-Items!F$2*($A79-Items!F$3))) -> 0.4700359482
A80: 1.8 | B80: =Items!B$4+(1-Items!B$4)/(1+EXP(-Items!B$2*($A80-Items!B$3))) -> 0.9981486738 | C80: =Items!C$4+(1-Items!C$4)/(1+EXP(-Items!C$2*($A80-Items!C$3))) -> 0.9172796388 | D80: =Items!D$4+(1-Items!D$4)/(1+EXP(-Items!D$2*($A80-Items!D$3))) -> 0.9660808985 | E80: =Items!E$4+(1-Items!E$4)/(1+EXP(-Items!E$2*($A80-Items!E$3))) -> 0.8865191481 | F80: =Items!F$4+(1-Items!F$4)/(1+EXP(-Items!F$2*($A80-Items!F$3))) -> 0.5
A81: 1.9 | B81: =Items!B$4+(1-Items!B$4)/(1+EXP(-Items!B$2*($A81-Items!B$3))) -> 0.998437649 | C81: =Items!C$4+(1-Items!C$4)/(1+EXP(-Items!C$2*($A81-Items!C$3))) -> 0.9237204281 | D81: =Items!D$4+(1-Items!D$4)/(1+EXP(-Items!D$2*($A81-Items!D$3))) -> 0.9714913945 | E81: =Items!E$4+(1-Items!E$4)/(1+EXP(-Items!E$2*($A81-Items!E$3))) -> 0.9046376624 | F81: =Items!F$4+(1-Items!F$4)/(1+EXP(-Items!F$2*($A81-Items!F$3))) -> 0.5299640518
A82: 2 | B82: =Items!B$4+(1-Items!B$4)/(1+EXP(-Items!B$2*($A82-Items!B$3))) -> 0.9986815774 | C82: =Items!C$4+(1-Items!C$4)/(1+EXP(-Items!C$2*($A82-Items!C$3))) -> 0.9297088681 | D82: =Items!D$4+(1-Items!D$4)/(1+EXP(-Items!D$2*($A82-Items!D$3))) -> 0.9760627058 | E82: =Items!E$4+(1-Items!E$4)/(1+EXP(-Items!E$2*($A82-Items!E$3))) -> 0.9201996087 | F82: =Items!F$4+(1-Items!F$4)/(1+EXP(-Items!F$2*($A82-Items!F$3))) -> 0.5597136493
A83: 2.1 | B83: =Items!B$4+(1-Items!B$4)/(1+EXP(-Items!B$2*($A83-Items!B$3))) -> 0.998887464 | C83: =Items!C$4+(1-Items!C$4)/(1+EXP(-Items!C$2*($A83-Items!C$3))) -> 0.9352692262 | D83: =Items!D$4+(1-Items!D$4)/(1+EXP(-Items!D$2*($A83-Items!D$3))) -> 0.9799179052 | E83: =Items!E$4+(1-Items!E$4)/(1+EXP(-Items!E$2*($A83-Items!E$3))) -> 0.9334618428 | F83: =Items!F$4+(1-Items!F$4)/(1+EXP(-Items!F$2*($A83-Items!F$3))) -> 0.5890404341
A84: 2.2 | B84: =Items!B$4+(1-Items!B$4)/(1+EXP(-Items!B$2*($A84-Items!B$3))) -> 0.9990612292 | C84: =Items!C$4+(1-Items!C$4)/(1+EXP(-Items!C$2*($A84-Items!C$3))) -> 0.9404256439 | D84: =Items!D$4+(1-Items!D$4)/(1+EXP(-Items!D$2*($A84-Items!D$3))) -> 0.983164141 | E84: =Items!E$4+(1-Items!E$4)/(1+EXP(-Items!E$2*($A84-Items!E$3))) -> 0.9446892637 | F84: =Items!F$4+(1-Items!F$4)/(1+EXP(-Items!F$2*($A84-Items!F$3))) -> 0.6177478748
A85: 2.3 | B85: =Items!B$4+(1-Items!B$4)/(1+EXP(-Items!B$2*($A85-Items!B$3))) -> 0.9992078759 | C85: =Items!C$4+(1-Items!C$4)/(1+EXP(-Items!C$2*($A85-Items!C$3))) -> 0.945201917 | D85: =Items!D$4+(1-Items!D$4)/(1+EXP(-Items!D$2*($A85-Items!D$3))) -> 0.9858940407 | E85: =Items!E$4+(1-Items!E$4)/(1+EXP(-Items!E$2*($A85-Items!E$3))) -> 0.9541406593 | F85: =Items!F$4+(1-Items!F$4)/(1+EXP(-Items!F$2*($A85-Items!F$3))) -> 0.6456563062
A86: 2.4 | B86: =Items!B$4+(1-Items!B$4)/(1+EXP(-Items!B$2*($A86-Items!B$3))) -> 0.99933163 | C86: =Items!C$4+(1-Items!C$4)/(1+EXP(-Items!C$2*($A86-Items!C$3))) -> 0.9496213152 | D86: =Items!D$4+(1-Items!D$4)/(1+EXP(-Items!D$2*($A86-Items!D$3))) -> 0.9881872135 | E86: =Items!E$4+(1-Items!E$4)/(1+EXP(-Items!E$2*($A86-Items!E$3))) -> 0.9620593015 | F86: =Items!F$4+(1-Items!F$4)/(1+EXP(-Items!F$2*($A86-Items!F$3))) -> 0.6726070171
A87: 2.5 | B87: =Items!B$4+(1-Items!B$4)/(1+EXP(-Items!B$2*($A87-Items!B$3))) -> 0.9994360608 | C87: =Items!C$4+(1-Items!C$4)/(1+EXP(-Items!C$2*($A87-Items!C$3))) -> 0.9537064358 | D87: =Items!D$4+(1-Items!D$4)/(1+EXP(-Items!D$2*($A87-Items!D$3))) -> 0.9901117516 | E87: =Items!E$4+(1-Items!E$4)/(1+EXP(-Items!E$2*($A87-Items!E$3))) -> 0.9686674218 | F87: =Items!F$4+(1-Items!F$4)/(1+EXP(-Items!F$2*($A87-Items!F$3))) -> 0.698465216
A88: 2.6 | B88: =Items!B$4+(1-Items!B$4)/(1+EXP(-Items!B$2*($A88-Items!B$3))) -> 0.9995241824 | C88: =Items!C$4+(1-Items!C$4)/(1+EXP(-Items!C$2*($A88-Items!C$3))) -> 0.9574790909 | D88: =Items!D$4+(1-Items!D$4)/(1+EXP(-Items!D$2*($A88-Items!D$3))) -> 0.9917256652 | E88: =Items!E$4+(1-Items!E$4)/(1+EXP(-Items!E$2*($A88-Items!E$3))) -> 0.9741636282 | F88: =Items!F$4+(1-Items!F$4)/(1+EXP(-Items!F$2*($A88-Items!F$3))) -> 0.7231218051
A89: 2.7 | B89: =Items!B$4+(1-Items!B$4)/(1+EXP(-Items!B$2*($A89-Items!B$3))) -> 0.9995985396 | C89: =Items!C$4+(1-Items!C$4)/(1+EXP(-Items!C$2*($A89-Items!C$3))) -> 0.9609602216 | D89: =Items!D$4+(1-Items!D$4)/(1+EXP(-Items!D$2*($A89-Items!D$3))) -> 0.9930782117 | E89: =Items!E$4+(1-Items!E$4)/(1+EXP(-Items!E$2*($A89-Items!E$3))) -> 0.9787224051 | F89: =Items!F$4+(1-Items!F$4)/(1+EXP(-Items!F$2*($A89-Items!F$3))) -> 0.7464939833
A90: 2.8 | B90: =Items!B$4+(1-Items!B$4)/(1+EXP(-Items!B$2*($A90-Items!B$3))) -> 0.9996612807 | C90: =Items!C$4+(1-Items!C$4)/(1+EXP(-Items!C$2*($A90-Items!C$3))) -> 0.9641698376 | D90: =Items!D$4+(1-Items!D$4)/(1+EXP(-Items!D$2*($A90-Items!D$3))) -> 0.9942111024 | E90: =Items!E$4+(1-Items!E$4)/(1+EXP(-Items!E$2*($A90-Items!E$3))) -> 0.9824949833 | F90: =Items!F$4+(1-Items!F$4)/(1+EXP(-Items!F$2*($A90-Items!F$3))) -> 0.7685247835
A91: 2.9 | B91: =Items!B$4+(1-Items!B$4)/(1+EXP(-Items!B$2*($A91-Items!B$3))) -> 0.9997142193 | C91: =Items!C$4+(1-Items!C$4)/(1+EXP(-Items!C$2*($A91-Items!C$3))) -> 0.9671269774 | D91: =Items!D$4+(1-Items!D$4)/(1+EXP(-Items!D$2*($A91-Items!D$3))) -> 0.9951595775 | E91: =Items!E$4+(1-Items!E$4)/(1+EXP(-Items!E$2*($A91-Items!E$3))) -> 0.985611032 | F91: =Items!F$4+(1-Items!F$4)/(1+EXP(-Items!F$2*($A91-Items!F$3))) -> 0.7891817065
A92: 3 | B92: =Items!B$4+(1-Items!B$4)/(1+EXP(-Items!B$2*($A92-Items!B$3))) -> 0.9997588861 | C92: =Items!C$4+(1-Items!C$4)/(1+EXP(-Items!C$2*($A92-Items!C$3))) -> 0.9698496876 | D92: =Items!D$4+(1-Items!D$4)/(1+EXP(-Items!D$2*($A92-Items!D$3))) -> 0.9959533542 | E92: =Items!E$4+(1-Items!E$4)/(1+EXP(-Items!E$2*($A92-Items!E$3))) -> 0.9881807746 | F92: =Items!F$4+(1-Items!F$4)/(1+EXP(-Items!F$2*($A92-Items!F$3))) -> 0.8084546514
A93: 3.1 | B93: =Items!B$4+(1-Items!B$4)/(1+EXP(-Items!B$2*($A93-Items!B$3))) -> 0.999796573 | C93: =Items!C$4+(1-Items!C$4)/(1+EXP(-Items!C$2*($A93-Items!C$3))) -> 0.9723550158 | D93: =Items!D$4+(1-Items!D$4)/(1+EXP(-Items!D$2*($A93-Items!D$3))) -> 0.9966174519 | E93: =Items!E$4+(1-Items!E$4)/(1+EXP(-Items!E$2*($A93-Items!E$3))) -> 0.990297252 | F93: =Items!F$4+(1-Items!F$4)/(1+EXP(-Items!F$2*($A93-Items!F$3))) -> 0.826353353
A94: 3.2 | B94: =Items!B$4+(1-Items!B$4)/(1+EXP(-Items!B$2*($A94-Items!B$3))) -> 0.9998283704 | C94: =Items!C$4+(1-Items!C$4)/(1+EXP(-Items!C$2*($A94-Items!C$3))) -> 0.9746590173 | D94: =Items!D$4+(1-Items!D$4)/(1+EXP(-Items!D$2*($A94-Items!D$3))) -> 0.997172908 | E94: =Items!E$4+(1-Items!E$4)/(1+EXP(-Items!E$2*($A94-Items!E$3))) -> 0.9920385585 | F94: =Items!F$4+(1-Items!F$4)/(1+EXP(-Items!F$2*($A94-Items!F$3))) -> 0.8429045311
A95: 3.3 | B95: =Items!B$4+(1-Items!B$4)/(1+EXP(-Items!B$2*($A95-Items!B$3))) -> 0.9998551982 | C95: =Items!C$4+(1-Items!C$4)/(1+EXP(-Items!C$2*($A95-Items!C$3))) -> 0.9767767713 | D95: =Items!D$4+(1-Items!D$4)/(1+EXP(-Items!D$2*($A95-Items!D$3))) -> 0.9976373918 | E95: =Items!E$4+(1-Items!E$4)/(1+EXP(-Items!E$2*($A95-Items!E$3))) -> 0.9934699431 | F95: =Items!F$4+(1-Items!F$4)/(1+EXP(-Items!F$2*($A95-Items!F$3))) -> 0.8581489351
A96: 3.4 | B96: =Items!B$4+(1-Items!B$4)/(1+EXP(-Items!B$2*($A96-Items!B$3))) -> 0.9998778331 | C96: =Items!C$4+(1-Items!C$4)/(1+EXP(-Items!C$2*($A96-Items!C$3))) -> 0.9787224051 | D96: =Items!D$4+(1-Items!D$4)/(1+EXP(-Items!D$2*($A96-Items!D$3))) -> 0.99802573 | E96: =Items!E$4+(1-Items!E$4)/(1+EXP(-Items!E$2*($A96-Items!E$3))) -> 0.9946457193 | F96: =Items!F$4+(1-Items!F$4)/(1+EXP(-Items!F$2*($A96-Items!F$3))) -> 0.8721384337
A97: 3.5 | B97: =Items!B$4+(1-Items!B$4)/(1+EXP(-Items!B$2*($A97-Items!B$3))) -> 0.9998969301 | C97: =Items!C$4+(1-Items!C$4)/(1+EXP(-Items!C$2*($A97-Items!C$3))) -> 0.9805091245 | D97: =Items!D$4+(1-Items!D$4)/(1+EXP(-Items!D$2*($A97-Items!D$3))) -> 0.998350355 | E97: =Items!E$4+(1-Items!E$4)/(1+EXP(-Items!E$2*($A97-Items!E$3))) -> 0.9956109609 | F97: =Items!F$4+(1-Items!F$4)/(1+EXP(-Items!F$2*($A97-Items!F$3))) -> 0.884933268
A98: 3.6 | B98: =Items!B$4+(1-Items!B$4)/(1+EXP(-Items!B$2*($A98-Items!B$3))) -> 0.9999130421 | C98: =Items!C$4+(1-Items!C$4)/(1+EXP(-Items!C$2*($A98-Items!C$3))) -> 0.982149249 | D98: =Items!D$4+(1-Items!D$4)/(1+EXP(-Items!D$2*($A98-Items!D$3))) -> 0.9986216845 | E98: =Items!E$4+(1-Items!E$4)/(1+EXP(-Items!E$2*($A98-Items!E$3))) -> 0.9964029815 | F98: =Items!F$4+(1-Items!F$4)/(1+EXP(-Items!F$2*($A98-Items!F$3))) -> 0.8965995485
A99: 3.7 | B99: =Items!B$4+(1-Items!B$4)/(1+EXP(-Items!B$2*($A99-Items!B$3))) -> 0.9999266357 | C99: =Items!C$4+(1-Items!C$4)/(1+EXP(-Items!C$2*($A99-Items!C$3))) -> 0.9836542501 | D99: =Items!D$4+(1-Items!D$4)/(1+EXP(-Items!D$2*($A99-Items!D$3))) -> 0.9988484436 | E99: =Items!E$4+(1-Items!E$4)/(1+EXP(-Items!E$2*($A99-Items!E$3))) -> 0.9970526081 | F99: =Items!F$4+(1-Items!F$4)/(1+EXP(-Items!F$2*($A99-Items!F$3))) -> 0.9072070469
A100: 3.8 | B100: =Items!B$4+(1-Items!B$4)/(1+EXP(-Items!B$2*($A100-Items!B$3))) -> 0.9999381044 | C100: =Items!C$4+(1-Items!C$4)/(1+EXP(-Items!C$2*($A100-Items!C$3))) -> 0.985034792 | D100: =Items!D$4+(1-Items!D$4)/(1+EXP(-Items!D$2*($A100-Items!D$3))) -> 0.9990379364 | E100: =Items!E$4+(1-Items!E$4)/(1+EXP(-Items!E$2*($A100-Items!E$3))) -> 0.9975852669 | F100: =Items!F$4+(1-Items!F$4)/(1+EXP(-Items!F$2*($A100-Items!F$3))) -> 0.9168273035
A101: 3.9 | B101: =Items!B$4+(1-Items!B$4)/(1+EXP(-Items!B$2*($A101-Items!B$3))) -> 0.9999477804 | C101: =Items!C$4+(1-Items!C$4)/(1+EXP(-Items!C$2*($A101-Items!C$3))) -> 0.9863007733 | D101: =Items!D$4+(1-Items!D$4)/(1+EXP(-Items!D$2*($A101-Items!D$3))) -> 0.9991962754 | E101: =Items!E$4+(1-Items!E$4)/(1+EXP(-Items!E$2*($A101-Items!E$3))) -> 0.9980219015 | F101: =Items!F$4+(1-Items!F$4)/(1+EXP(-Items!F$2*($A101-Items!F$3))) -> 0.9255320548
A102: 4 | B102: =Items!B$4+(1-Items!B$4)/(1+EXP(-Items!B$2*($A102-Items!B$3))) -> 0.9999559438 | C102: =Items!C$4+(1-Items!C$4)/(1+EXP(-Items!C$2*($A102-Items!C$3))) -> 0.9874613695 | D102: =Items!D$4+(1-Items!D$4)/(1+EXP(-Items!D$2*($A102-Items!D$3))) -> 0.999328574 | E102: =Items!E$4+(1-Items!E$4)/(1+EXP(-Items!E$2*($A102-Items!E$3))) -> 0.9983797437 | F102: =Items!F$4+(1-Items!F$4)/(1+EXP(-Items!F$2*($A102-Items!F$3))) -> 0.9333919644
A103: 4.1 | B103: =Items!B$4+(1-Items!B$4)/(1+EXP(-Items!B$2*($A103-Items!B$3))) -> 0.9999628311 | C103: =Items!C$4+(1-Items!C$4)/(1+EXP(-Items!C$2*($A103-Items!C$3))) -> 0.9885250751 | D103: =Items!D$4+(1-Items!D$4)/(1+EXP(-Items!D$2*($A103-Items!D$3))) -> 0.999439109 | E103: =Items!E$4+(1-Items!E$4)/(1+EXP(-Items!E$2*($A103-Items!E$3))) -> 0.9986729591 | F103: =Items!F$4+(1-Items!F$4)/(1+EXP(-Items!F$2*($A103-Items!F$3))) -> 0.940475634
A104: 4.2 | B104: =Items!B$4+(1-Items!B$4)/(1+EXP(-Items!B$2*($A104-Items!B$3))) -> 0.9999686417 | C104: =Items!C$4+(1-Items!C$4)/(1+EXP(-Items!C$2*($A104-Items!C$3))) -> 0.9894997453 | D104: =Items!D$4+(1-Items!D$4)/(1+EXP(-Items!D$2*($A104-Items!D$3))) -> 0.9995314563 | E104: =Items!E$4+(1-Items!E$4)/(1+EXP(-Items!E$2*($A104-Items!E$3))) -> 0.998913184 | F104: =Items!F$4+(1-Items!F$4)/(1+EXP(-Items!F$2*($A104-Items!F$3))) -> 0.9468488636
A105: 4.3 | B105: =Items!B$4+(1-Items!B$4)/(1+EXP(-Items!B$2*($A105-Items!B$3))) -> 0.999973544 | C105: =Items!C$4+(1-Items!C$4)/(1+EXP(-Items!C$2*($A105-Items!C$3))) -> 0.9903926366 | D105: =Items!D$4+(1-Items!D$4)/(1+EXP(-Items!D$2*($A105-Items!D$3))) -> 0.9996086059 | E105: =Items!E$4+(1-Items!E$4)/(1+EXP(-Items!E$2*($A105-Items!E$3))) -> 0.9991099712 | F105: =Items!F$4+(1-Items!F$4)/(1+EXP(-Items!F$2*($A105-Items!F$3))) -> 0.9525741268
A106: 4.4 | B106: =Items!B$4+(1-Items!B$4)/(1+EXP(-Items!B$2*($A106-Items!B$3))) -> 0.9999776799 | C106: =Items!C$4+(1-Items!C$4)/(1+EXP(-Items!C$2*($A106-Items!C$3))) -> 0.9912104459 | D106: =Items!D$4+(1-Items!D$4)/(1+EXP(-Items!D$2*($A106-Items!D$3))) -> 0.9996730567 | E106: =Items!E$4+(1-Items!E$4)/(1+EXP(-Items!E$2*($A106-Items!E$3))) -> 0.999271159 | F106: =Items!F$4+(1-Items!F$4)/(1+EXP(-Items!F$2*($A106-Items!F$3))) -> 0.9577102282
A107: 4.5 | B107: =Items!B$4+(1-Items!B$4)/(1+EXP(-Items!B$2*($A107-Items!B$3))) -> 0.9999811692 | C107: =Items!C$4+(1-Items!C$4)/(1+EXP(-Items!C$2*($A107-Items!C$3))) -> 0.9919593489 | D107: =Items!D$4+(1-Items!D$4)/(1+EXP(-Items!D$2*($A107-Items!D$3))) -> 0.9997268977 | E107: =Items!E$4+(1-Items!E$4)/(1+EXP(-Items!E$2*($A107-Items!E$3))) -> 0.9994031769 | F107: =Items!F$4+(1-Items!F$4)/(1+EXP(-Items!F$2*($A107-Items!F$3))) -> 0.9623121095
A108: 4.6 | B108: =Items!B$4+(1-Items!B$4)/(1+EXP(-Items!B$2*($A108-Items!B$3))) -> 0.9999841131 | C108: =Items!C$4+(1-Items!C$4)/(1+EXP(-Items!C$2*($A108-Items!C$3))) -> 0.9926450357 | D108: =Items!D$4+(1-Items!D$4)/(1+EXP(-Items!D$2*($A108-Items!D$3))) -> 0.9997718744 | E108: =Items!E$4+(1-Items!E$4)/(1+EXP(-Items!E$2*($A108-Items!E$3))) -> 0.9995112965 | F108: =Items!F$4+(1-Items!F$4)/(1+EXP(-Items!F$2*($A108-Items!F$3))) -> 0.9664307767
A109: 4.7 | B109: =Items!B$4+(1-Items!B$4)/(1+EXP(-Items!B$2*($A109-Items!B$3))) -> 0.9999865968 | C109: =Items!C$4+(1-Items!C$4)/(1+EXP(-Items!C$2*($A109-Items!C$3))) -> 0.9932727455 | D109: =Items!D$4+(1-Items!D$4)/(1+EXP(-Items!D$2*($A109-Items!D$3))) -> 0.9998094455 | E109: =Items!E$4+(1-Items!E$4)/(1+EXP(-Items!E$2*($A109-Items!E$3))) -> 0.9995998391 | F109: =Items!F$4+(1-Items!F$4)/(1+EXP(-Items!F$2*($A109-Items!F$3))) -> 0.9701133202
A110: 4.8 | B110: =Items!B$4+(1-Items!B$4)/(1+EXP(-Items!B$2*($A110-Items!B$3))) -> 0.9999886921 | C110: =Items!C$4+(1-Items!C$4)/(1+EXP(-Items!C$2*($A110-Items!C$3))) -> 0.9938472993 | D110: =Items!D$4+(1-Items!D$4)/(1+EXP(-Items!D$2*($A110-Items!D$3))) -> 0.9998408299 | E110: =Items!E$4+(1-Items!E$4)/(1+EXP(-Items!E$2*($A110-Items!E$3))) -> 0.9996723463 | F110: =Items!F$4+(1-Items!F$4)/(1+EXP(-Items!F$2*($A110-Items!F$3))) -> 0.9734030064
A111: 4.9 | B111: =Items!B$4+(1-Items!B$4)/(1+EXP(-Items!B$2*($A111-Items!B$3))) -> 0.9999904599 | C111: =Items!C$4+(1-Items!C$4)/(1+EXP(-Items!C$2*($A111-Items!C$3))) -> 0.9943731303 | D111: =Items!D$4+(1-Items!D$4)/(1+EXP(-Items!D$2*($A111-Items!D$3))) -> 0.9998670461 | E111: =Items!E$4+(1-Items!E$4)/(1+EXP(-Items!E$2*($A111-Items!E$3))) -> 0.9997317199 | F111: =Items!F$4+(1-Items!F$4)/(1+EXP(-Items!F$2*($A111-Items!F$3))) -> 0.9763394218
A112: 5 | B112: =Items!B$4+(1-Items!B$4)/(1+EXP(-Items!B$2*($A112-Items!B$3))) -> 0.9999919514 | C112: =Items!C$4+(1-Items!C$4)/(1+EXP(-Items!C$2*($A112-Items!C$3))) -> 0.9948543132 | D112: =Items!D$4+(1-Items!D$4)/(1+EXP(-Items!D$2*($A112-Items!D$3))) -> 0.9998889449 | E112: =Items!E$4+(1-Items!E$4)/(1+EXP(-Items!E$2*($A112-Items!E$3))) -> 0.9997803375 | F112: =Items!F$4+(1-Items!F$4)/(1+EXP(-Items!F$2*($A112-Items!F$3))) -> 0.978958653
A113: 5.1 | B113: =Items!B$4+(1-Items!B$4)/(1+EXP(-Items!B$2*($A113-Items!B$3))) -> 0.9999932096 | C113: =Items!C$4+(1-Items!C$4)/(1+EXP(-Items!C$2*($A113-Items!C$3))) -> 0.9952945915 | D113: =Items!D$4+(1-Items!D$4)/(1+EXP(-Items!D$2*($A113-Items!D$3))) -> 0.9999072371 | E113: =Items!E$4+(1-Items!E$4)/(1+EXP(-Items!E$2*($A113-Items!E$3))) -> 0.9998201466 | F113: =Items!F$4+(1-Items!F$4)/(1+EXP(-Items!F$2*($A113-Items!F$3))) -> 0.98129349
A114: 5.2 | B114: =Items!B$4+(1-Items!B$4)/(1+EXP(-Items!B$2*($A114-Items!B$3))) -> 0.9999942712 | C114: =Items!C$4+(1-Items!C$4)/(1+EXP(-Items!C$2*($A114-Items!C$3))) -> 0.9956974023 | D114: =Items!D$4+(1-Items!D$4)/(1+EXP(-Items!D$2*($A114-Items!D$3))) -> 0.9999225166 | E114: =Items!E$4+(1-Items!E$4)/(1+EXP(-Items!E$2*($A114-Items!E$3))) -> 0.9998527425 | F114: =Items!F$4+(1-Items!F$4)/(1+EXP(-Items!F$2*($A114-Items!F$3))) -> 0.9833736439
A115: 5.3 | B115: =Items!B$4+(1-Items!B$4)/(1+EXP(-Items!B$2*($A115-Items!B$3))) -> 0.9999951668 | C115: =Items!C$4+(1-Items!C$4)/(1+EXP(-Items!C$2*($A115-Items!C$3))) -> 0.9960659007 | D115: =Items!D$4+(1-Items!D$4)/(1+EXP(-Items!D$2*($A115-Items!D$3))) -> 0.9999352795 | E115: =Items!E$4+(1-Items!E$4)/(1+EXP(-Items!E$2*($A115-Items!E$3))) -> 0.9998794317 | F115: =Items!F$4+(1-Items!F$4)/(1+EXP(-Items!F$2*($A115-Items!F$3))) -> 0.9852259683
A116: 5.4 | B116: =Items!B$4+(1-Items!B$4)/(1+EXP(-Items!B$2*($A116-Items!B$3))) -> 0.9999959224 | C116: =Items!C$4+(1-Items!C$4)/(1+EXP(-Items!C$2*($A116-Items!C$3))) -> 0.9964029815 | D116: =Items!D$4+(1-Items!D$4)/(1+EXP(-Items!D$2*($A116-Items!D$3))) -> 0.9999459402 | E116: =Items!E$4+(1-Items!E$4)/(1+EXP(-Items!E$2*($A116-Items!E$3))) -> 0.9999012843 | F116: =Items!F$4+(1-Items!F$4)/(1+EXP(-Items!F$2*($A116-Items!F$3))) -> 0.9868746817
A117: 5.5 | B117: =Items!B$4+(1-Items!B$4)/(1+EXP(-Items!B$2*($A117-Items!B$3))) -> 0.9999965599 | C117: =Items!C$4+(1-Items!C$4)/(1+EXP(-Items!C$2*($A117-Items!C$3))) -> 0.9967112999 | D117: =Items!D$4+(1-Items!D$4)/(1+EXP(-Items!D$2*($A117-Items!D$3))) -> 0.9999548451 | E117: =Items!E$4+(1-Items!E$4)/(1+EXP(-Items!E$2*($A117-Items!E$3))) -> 0.9999191766 | F117: =Items!F$4+(1-Items!F$4)/(1+EXP(-Items!F$2*($A117-Items!F$3))) -> 0.9883415834
A118: 5.6 | B118: =Items!B$4+(1-Items!B$4)/(1+EXP(-Items!B$2*($A118-Items!B$3))) -> 0.9999970977 | C118: =Items!C$4+(1-Items!C$4)/(1+EXP(-Items!C$2*($A118-Items!C$3))) -> 0.9969932906 | D118: =Items!D$4+(1-Items!D$4)/(1+EXP(-Items!D$2*($A118-Items!D$3))) -> 0.9999622831 | E118: =Items!E$4+(1-Items!E$4)/(1+EXP(-Items!E$2*($A118-Items!E$3))) -> 0.9999338262 | F118: =Items!F$4+(1-Items!F$4)/(1+EXP(-Items!F$2*($A118-Items!F$3))) -> 0.9896462625
A119: 5.7 | B119: =Items!B$4+(1-Items!B$4)/(1+EXP(-Items!B$2*($A119-Items!B$3))) -> 0.9999975514 | C119: =Items!C$4+(1-Items!C$4)/(1+EXP(-Items!C$2*($A119-Items!C$3))) -> 0.9972511853 | D119: =Items!D$4+(1-Items!D$4)/(1+EXP(-Items!D$2*($A119-Items!D$3))) -> 0.999968496 | E119: =Items!E$4+(1-Items!E$4)/(1+EXP(-Items!E$2*($A119-Items!E$3))) -> 0.9999458207 | F119: =Items!F$4+(1-Items!F$4)/(1+EXP(-Items!F$2*($A119-Items!F$3))) -> 0.9908062946
A120: 5.8 | B120: =Items!B$4+(1-Items!B$4)/(1+EXP(-Items!B$2*($A120-Items!B$3))) -> 0.9999979342 | C120: =Items!C$4+(1-Items!C$4)/(1+EXP(-Items!C$2*($A120-Items!C$3))) -> 0.9974870294 | D120: =Items!D$4+(1-Items!D$4)/(1+EXP(-Items!D$2*($A120-Items!D$3))) -> 0.9999736855 | E120: =Items!E$4+(1-Items!E$4)/(1+EXP(-Items!E$2*($A120-Items!E$3))) -> 0.9999556412 | F120: =Items!F$4+(1-Items!F$4)/(1+EXP(-Items!F$2*($A120-Items!F$3))) -> 0.9918374288
A121: 5.9 | B121: =Items!B$4+(1-Items!B$4)/(1+EXP(-Items!B$2*($A121-Items!B$3))) -> 0.9999982572 | C121: =Items!C$4+(1-Items!C$4)/(1+EXP(-Items!C$2*($A121-Items!C$3))) -> 0.9977026967 | D121: =Items!D$4+(1-Items!D$4)/(1+EXP(-Items!D$2*($A121-Items!D$3))) -> 0.9999780202 | E121: =Items!E$4+(1-Items!E$4)/(1+EXP(-Items!E$2*($A121-Items!E$3))) -> 0.9999636817 | F121: =Items!F$4+(1-Items!F$4)/(1+EXP(-Items!F$2*($A121-Items!F$3))) -> 0.9927537604
A122: 6 | B122: =Items!B$4+(1-Items!B$4)/(1+EXP(-Items!B$2*($A122-Items!B$3))) -> 0.9999985296 | C122: =Items!C$4+(1-Items!C$4)/(1+EXP(-Items!C$2*($A122-Items!C$3))) -> 0.9978999038 | D122: =Items!D$4+(1-Items!D$4)/(1+EXP(-Items!D$2*($A122-Items!D$3))) -> 0.9999816408 | E122: =Items!E$4+(1-Items!E$4)/(1+EXP(-Items!E$2*($A122-Items!E$3))) -> 0.9999702649 | F122: =Items!F$4+(1-Items!F$4)/(1+EXP(-Items!F$2*($A122-Items!F$3))) -> 0.9935678915

Sheet Scored
A1: Theta | B1: V | C1: W | D1: X | E1: Y | F1: Z | G1: Product
A2: -6 | B2: =IF(Items!B$5, IF(Items!B$6, Curves!B2, 1-Curves!B2), 1) -> 0.9990612292 | C2: =IF(Items!C$5, IF(Items!C$6, Curves!C2, 1-Curves!C2), 1) -> 0.7938472993 | D2: =IF(Items!D$5, IF(Items!D$6, Curves!D2, 1-Curves!D2), 1) -> 0.1000183592 | E2: =IF(Items!E$5, IF(Items!E$6, Curves!E2, 1-Curves!E2), 1) -> 0.7999991875 | F2: =IF(Items!F$5, IF(Items!F$6, Curves!F2, 1-Curves!F2), 1) -> 8.609268613e-05 | G2: =PRODUCT(B2:F2) -> 5.463420235e-06
A3: -5.9 | B3: =IF(Items!B$5, IF(Items!B$6, Curves!B3, 1-Curves!B3), 1) -> 0.998887464 | C3: =IF(Items!C$5, IF(Items!C$6, Curves!C3, 1-Curves!C3), 1) -> 0.7932727455 | D3: =IF(Items!D$5, IF(Items!D$6, Curves!D3, 1-Curves!D3), 1) -> 0.1000219798 | E3: =IF(Items!E$5, IF(Items!E$6, Curves!E3, 1-Curves!E3), 1) -> 0.7999990076 | F3: =IF(Items!F$5, IF(Items!F$6, Curves!F3, 1-Curves!F3), 1) -> 9.706816708e-05 | G3: =PRODUCT(B3:F3) -> 6.154613998e-06 | I3: Max | J3: =MAX(G2:G102) -> 0.0005255865517
A4: -5.8 | B4: =IF(Items!B$5, IF(Items!B$6, Curves!B4, 1-Curves!B4), 1) -> 0.9986815774 | C4: =IF(Items!C$5, IF(Items!C$6, Curves!C4, 1-Curves!C4), 1) -> 0.7926450357 | D4: =IF(Items!D$5, IF(Items!D$6, Curves!D4, 1-Curves!D4), 1) -> 0.1000263145 | E4: =IF(Items!E$5, IF(Items!E$6, Curves!E4, 1-Curves!E4), 1) -> 0.7999987879 | F4: =IF(Items!F$5, IF(Items!F$6, Curves!F4, 1-Curves!F4), 1) -> 0.0001094426983 | G4: 6.932600451e-06 | I4: Theta Score | J4: =_xlfn.XLOOKUP(J3,G2:G102,A2:A102) -> -0.6
A5: -5.7 | B5: =IF(Items!B$5, IF(Items!B$6, Curves!B5, 1-Curves!B5), 1) -> 0.998437649 | C5: =IF(Items!C$5, IF(Items!C$6, Curves!C5, 1-Curves!C5), 1) -> 0.7919593489 | D5: =IF(Items!D$5, IF(Items!D$6, Curves!D5, 1-Curves!D5), 1) -> 0.100031504 | E5: =IF(Items!E$5, IF(Items!E$6, Curves!E5, 1-Curves!E5), 1) -> 0.7999985195 | F5: =IF(Items!F$5, IF(Items!F$6, Curves!F5, 1-Curves!F5), 1) -> 0.000123394576 | G5: 7.808109422e-06 | I5: Stderr | J5: =StandardErrorDp(G2:G102, 0.9)*0.1 -> 2.273294459
A6: -5.6 | B6: =IF(Items!B$5, IF(Items!B$6, Curves!B6, 1-Curves!B6), 1) -> 0.9981486738 | C6: =IF(Items!C$5, IF(Items!C$6, Curves!C6, 1-Curves!C6), 1) -> 0.7912104459 | D6: =IF(Items!D$5, IF(Items!D$6, Curves!D6, 1-Curves!D6), 1) -> 0.1000377169 | E6: =IF(Items!E$5, IF(Items!E$6, Curves!E6, 1-Curves!E6), 1) -> 0.7999981917 | F6: =IF(Items!F$5, IF(Items!F$6, Curves!F6, 1-Curves!F6), 1) -> 0.0001391248072 | G6: 8.793152367e-06 | I6: Interval Low | J6: =J4-J5 -> -2.873294459
A7: -5.5 | B7: =IF(Items!B$5, IF(Items!B$6, Curves!B7, 1-Curves!B7), 1) -> 0.9978063666 | C7: =IF(Items!C$5, IF(Items!C$6, Curves!C7, 1-Curves!C7), 1) -> 0.7903926366 | D7: =IF(Items!D$5, IF(Items!D$6, Curves!D7, 1-Curves!D7), 1) -> 0.1000451549 | E7: =IF(Items!E$5, IF(Items!E$6, Curves!E7, 1-Curves!E7), 1) -> 0.7999977914 | F7: =IF(Items!F$5, IF(Items!F$6, Curves!F7, 1-Curves!F7), 1) -> 0.0001568599997 | G7: 9.901163115e-06 | I7: Interval High | J7: =J4+J5 -> 1.673294459
A8: -5.4 | B8: =IF(Items!B$5, IF(Items!B$6, Curves!B8, 1-Curves!B8), 1) -> 0.9974009322 | C8: =IF(Items!C$5, IF(Items!C$6, Curves!C8, 1-Curves!C8), 1) -> 0.7894997453 | D8: =IF(Items!D$5, IF(Items!D$6, Curves!D8, 1-Curves!D8), 1) -> 0.1000540598 | E8: =IF(Items!E$5, IF(Items!E$6, Curves!E8, 1-Curves!E8), 1) -> 0.7999973024 | F8: =IF(Items!F$5, IF(Items!F$6, Curves!F8, 1-Curves!F8), 1) -> 0.0001768556188 | G8: 1.114715048e-05
A9: -5.3 | B9: =IF(Items!B$5, IF(Items!B$6, Curves!B9, 1-Curves!B9), 1) -> 0.9969207954 | C9: =IF(Items!C$5, IF(Items!C$6, Curves!C9, 1-Curves!C9), 1) -> 0.7885250751 | D9: =IF(Items!D$5, IF(Items!D$6, Curves!D9, 1-Curves!D9), 1) -> 0.1000647205 | E9: =IF(Items!E$5, IF(Items!E$6, Curves!E9, 1-Curves!E9), 1) -> 0.7999967051 | F9: =IF(Items!F$5, IF(Items!F$6, Curves!F9, 1-Curves!F9), 1) -> 0.0001993996572 | G9: 1.254786265e-05 | I9: Slope | J9: 100
A10: -5.2 | B10: =IF(Items!B$5, IF(Items!B$6, Curves!B10, 1-Curves!B10), 1) -> 0.9963522852 | C10: =IF(Items!C$5, IF(Items!C$6, Curves!C10, 1-Curves!C10), 1) -> 0.7874613695 | D10: =IF(Items!D$5, IF(Items!D$6, Curves!D10, 1-Curves!D10), 1) -> 0.1000774834 | E10: =IF(Items!E$5, IF(Items!E$6, Curves!E10, 1-Curves!E10), 1) -> 0.7999959757 | F10: =IF(Items!F$5, IF(Items!F$6, Curves!F10, 1-Curves!F10), 1) -> 0.0002248167702 | G10: 1.412196275e-05 | I10: Intercept | J10: 1500
A11: -5.1 | B11: =IF(Items!B$5, IF(Items!B$6, Curves!B11, 1-Curves!B11), 1) -> 0.9956792665 | C11: =IF(Items!C$5, IF(Items!C$6, Curves!C11, 1-Curves!C11), 1) -> 0.7863007733 | D11: =IF(Items!D$5, IF(Items!D$6, Curves!D11, 1-Curves!D11), 1) -> 0.1000927629 | E11: =IF(Items!E$5, IF(Items!E$6, Curves!E11, 1-Curves!E11), 1) -> 0.7999950847 | F11: =IF(Items!F$5, IF(Items!F$6, Curves!F11, 1-Curves!F11), 1) -> 0.0002534729352 | G11: 1.589021438e-05
A12: -5 | B12: =IF(Items!B$5, IF(Items!B$6, Curves!B12, 1-Curves!B12), 1) -> 0.9948827108 | C12: =IF(Items!C$5, IF(Items!C$6, Curves!C12, 1-Curves!C12), 1) -> 0.785034792 | D12: =IF(Items!D$5, IF(Items!D$6, Curves!D12, 1-Curves!D12), 1) -> 0.1001110551 | E12: =IF(Items!E$5, IF(Items!E$6, Curves!E12, 1-Curves!E12), 1) -> 0.7999939964 | F12: =IF(Items!F$5, IF(Items!F$6, Curves!F12, 1-Curves!F12), 1) -> 0.0002857807008 | G12: 1.787567507e-05 | I12: Scale Score | J12: =J9*J4+J10 -> 1440
A13: -4.9 | B13: =IF(Items!B$5, IF(Items!B$6, Curves!B13, 1-Curves!B13), 1) -> 0.9939401985 | C13: =IF(Items!C$5, IF(Items!C$6, Curves!C13, 1-Curves!C13), 1) -> 0.7836542501 | D13: =IF(Items!D$5, IF(Items!D$6, Curves!D13, 1-Curves!D13), 1) -> 0.1001329539 | E13: =IF(Items!E$5, IF(Items!E$6, Curves!E13, 1-Curves!E13), 1) -> 0.7999926672 | F13: =IF(Items!F$5, IF(Items!F$6, Curves!F13, 1-Curves!F13), 1) -> 0.0003222051005 | G13: 2.010389438e-05 | I13: Scale Stderr | J13: =J5*J9 -> 227.3294459
A14: -4.8 | B14: =IF(Items!B$5, IF(Items!B$6, Curves!B14, 1-Curves!B14), 1) -> 0.9928253444 | C14: =IF(Items!C$5, IF(Items!C$6, Curves!C14, 1-Curves!C14), 1) -> 0.782149249 | D14: =IF(Items!D$5, IF(Items!D$6, Curves!D14, 1-Curves!D14), 1) -> 0.1001591701 | E14: =IF(Items!E$5, IF(Items!E$6, Curves!E14, 1-Curves!E14), 1) -> 0.7999910437 | F14: =IF(Items!F$5, IF(Items!F$6, Curves!F14, 1-Curves!F14), 1) -> 0.0003632703132 | G14: 2.260311206e-05 | I14: Interval Low | J14: =J12-J13 -> 1212.670554
A15: -4.7 | B15: =IF(Items!B$5, IF(Items!B$6, Curves!B15, 1-Curves!B15), 1) -> 0.9915071371 | C15: =IF(Items!C$5, IF(Items!C$6, Curves!C15, 1-Curves!C15), 1) -> 0.7805091245 | D15: =IF(Items!D$5, IF(Items!D$6, Curves!D15, 1-Curves!D15), 1) -> 0.1001905545 | E15: =IF(Items!E$5, IF(Items!E$6, Curves!E15, 1-Curves!E15), 1) -> 0.7999890608 | F15: =IF(Items!F$5, IF(Items!F$6, Curves!F15, 1-Curves!F15), 1) -> 0.000409567165 | G15: 2.540444958e-05 | I15: Interval High | J15: =J12+J13 -> 1667.329446
A16: -4.6 | B16: =IF(Items!B$5, IF(Items!B$6, Curves!B16, 1-Curves!B16), 1) -> 0.9899491861 | C16: =IF(Items!C$5, IF(Items!C$6, Curves!C16, 1-Curves!C16), 1) -> 0.7787224051 | D16: =IF(Items!D$5, IF(Items!D$6, Curves!D16, 1-Curves!D16), 1) -> 0.1002281256 | E16: =IF(Items!E$5, IF(Items!E$6, Curves!E16, 1-Curves!E16), 1) -> 0.7999866389 | F16: =IF(Items!F$5, IF(Items!F$6, Curves!F16, 1-Curves!F16), 1) -> 0.0004617615765 | G16: 2.854208582e-05
A17: -4.5 | B17: =IF(Items!B$5, IF(Items!B$6, Curves!B17, 1-Curves!B17), 1) -> 0.9881088684 | C17: =IF(Items!C$5, IF(Items!C$6, Curves!C17, 1-Curves!C17), 1) -> 0.7767767713 | D17: =IF(Items!D$5, IF(Items!D$6, Curves!D17, 1-Curves!D17), 1) -> 0.1002731023 | E17: =IF(Items!E$5, IF(Items!E$6, Curves!E17, 1-Curves!E17), 1) -> 0.7999836807 | F17: =IF(Items!F$5, IF(Items!F$6, Curves!F17, 1-Curves!F17), 1) -> 0.0005206040741 | G17: 3.205340485e-05
A18: -4.4 | B18: =IF(Items!B$5, IF(Items!B$6, Curves!B18, 1-Curves!B18), 1) -> 0.985936373 | C18: =IF(Items!C$5, IF(Items!C$6, Curves!C18, 1-Curves!C18), 1) -> 0.7746590173 | D18: =IF(Items!D$5, IF(Items!D$6, Curves!D18, 1-Curves!D18), 1) -> 0.1003269433 | E18: =IF(Items!E$5, IF(Items!E$6, Curves!E18, 1-Curves!E18), 1) -> 0.7999800677 | F18: =IF(Items!F$5, IF(Items!F$6, Curves!F18, 1-Curves!F18), 1) -> 0.0005869404961 | G18: 3.597909963e-05
A19: -4.3 | B19: =IF(Items!B$5, IF(Items!B$6, Curves!B19, 1-Curves!B19), 1) -> 0.9833736439 | C19: =IF(Items!C$5, IF(Items!C$6, Curves!C19, 1-Curves!C19), 1) -> 0.7723550158 | D19: =IF(Items!D$5, IF(Items!D$6, Curves!D19, 1-Curves!D19), 1) -> 0.1003913941 | E19: =IF(Items!E$5, IF(Items!E$6, Curves!E19, 1-Curves!E19), 1) -> 0.7999756548 | F19: =IF(Items!F$5, IF(Items!F$6, Curves!F19, 1-Curves!F19), 1) -> 0.0006617240426 | G19: 4.036321076e-05
A20: -4.2 | B20: =IF(Items!B$5, IF(Items!B$6, Curves!B20, 1-Curves!B20), 1) -> 0.9803532301 | C20: =IF(Items!C$5, IF(Items!C$6, Curves!C20, 1-Curves!C20), 1) -> 0.7698496876 | D20: =IF(Items!D$5, IF(Items!D$6, Curves!D20, 1-Curves!D20), 1) -> 0.1004685437 | E20: =IF(Items!E$5, IF(Items!E$6, Curves!E20, 1-Curves!E20), 1) -> 0.7999702649 | F20: =IF(Items!F$5, IF(Items!F$6, Curves!F20, 1-Curves!F20), 1) -> 0.0007460288338 | G20: 4.525307408e-05
A21: -4.1 | B21: =IF(Items!B$5, IF(Items!B$6, Curves!B21, 1-Curves!B21), 1) -> 0.9767970619 | C21: =IF(Items!C$5, IF(Items!C$6, Curves!C21, 1-Curves!C21), 1) -> 0.7671269774 | D21: =IF(Items!D$5, IF(Items!D$6, Curves!D21, 1-Curves!D21), 1) -> 0.100560891 | E21: =IF(Items!E$5, IF(Items!E$6, Curves!E21, 1-Curves!E21), 1) -> 0.7999636817 | F21: =IF(Items!F$5, IF(Items!F$6, Curves!F21, 1-Curves!F21), 1) -> 0.0008410651623 | G21: 5.069914416e-05
A22: -4 | B22: =IF(Items!B$5, IF(Items!B$6, Curves!B22, 1-Curves!B22), 1) -> 0.972615189 | C22: =IF(Items!C$5, IF(Items!C$6, Curves!C22, 1-Curves!C22), 1) -> 0.7641698376 | D22: =IF(Items!D$5, IF(Items!D$6, Curves!D22, 1-Curves!D22), 1) -> 0.100671426 | E22: =IF(Items!E$5, IF(Items!E$6, Curves!E22, 1-Curves!E22), 1) -> 0.7999556412 | F22: =IF(Items!F$5, IF(Items!F$6, Curves!F22, 1-Curves!F22), 1) -> 0.0009481966444 | G22: 5.675465379e-05
A23: -3.9 | B23: =IF(Items!B$5, IF(Items!B$6, Curves!B23, 1-Curves!B23), 1) -> 0.9677045353 | C23: =IF(Items!C$5, IF(Items!C$6, Curves!C23, 1-Curves!C23), 1) -> 0.7609602216 | D23: =IF(Items!D$5, IF(Items!D$6, Curves!D23, 1-Curves!D23), 1) -> 0.1008037246 | E23: =IF(Items!E$5, IF(Items!E$6, Curves!E23, 1-Curves!E23), 1) -> 0.7999458207 | F23: =IF(Items!F$5, IF(Items!F$6, Curves!F23, 1-Curves!F23), 1) -> 0.001068959502 | G23: 6.347506241e-05
A24: -3.8 | B24: =IF(Items!B$5, IF(Items!B$6, Curves!B24, 1-Curves!B24), 1) -> 0.9619477529 | C24: =IF(Items!C$5, IF(Items!C$6, Curves!C24, 1-Curves!C24), 1) -> 0.7574790909 | D24: =IF(Items!D$5, IF(Items!D$6, Curves!D24, 1-Curves!D24), 1) -> 0.1009620636 | E24: =IF(Items!E$5, IF(Items!E$6, Curves!E24, 1-Curves!E24), 1) -> 0.7999338262 | F24: =IF(Items!F$5, IF(Items!F$6, Curves!F24, 1-Curves!F24), 1) -> 0.001205084234 | G24: 7.091723895e-05
A25: -3.7 | B25: =IF(Items!B$5, IF(Items!B$6, Curves!B25, 1-Curves!B25), 1) -> 0.955212297 | C25: =IF(Items!C$5, IF(Items!C$6, Curves!C25, 1-Curves!C25), 1) -> 0.7537064358 | D25: =IF(Items!D$5, IF(Items!D$6, Curves!D25, 1-Curves!D25), 1) -> 0.1011515564 | E25: =IF(Items!E$5, IF(Items!E$6, Curves!E25, 1-Curves!E25), 1) -> 0.7999191766 | F25: =IF(Items!F$5, IF(Items!F$6, Curves!F25, 1-Curves!F25), 1) -> 0.00135851995 | G25: 7.913832008e-05
A26: -3.6 | B26: =IF(Items!B$5, IF(Items!B$6, Curves!B26, 1-Curves!B26), 1) -> 0.9473498816 | C26: =IF(Items!C$5, IF(Items!C$6, Curves!C26, 1-Curves!C26), 1) -> 0.7496213152 | D26: =IF(Items!D$5, IF(Items!D$6, Curves!D26, 1-Curves!D26), 1) -> 0.1013783155 | E26: =IF(Items!E$5, IF(Items!E$6, Curves!E26, 1-Curves!E26), 1) -> 0.7999012843 | F26: =IF(Items!F$5, IF(Items!F$6, Curves!F26, 1-Curves!F26), 1) -> 0.001531461707 | G26: 8.819418256e-05
A27: -3.5 | B27: =IF(Items!B$5, IF(Items!B$6, Curves!B27, 1-Curves!B27), 1) -> 0.9381965337 | C27: =IF(Items!C$5, IF(Items!C$6, Curves!C27, 1-Curves!C27), 1) -> 0.745201917 | D27: =IF(Items!D$5, IF(Items!D$6, Curves!D27, 1-Curves!D27), 1) -> 0.101649645 | E27: =IF(Items!E$5, IF(Items!E$6, Curves!E27, 1-Curves!E27), 1) -> 0.7998794317 | F27: =IF(Items!F$5, IF(Items!F$6, Curves!F27, 1-Curves!F27), 1) -> 0.001726381166 | G27: 9.813747341e-05
A28: -3.4 | B28: =IF(Items!B$5, IF(Items!B$6, Curves!B28, 1-Curves!B28), 1) -> 0.9275735146 | C28: =IF(Items!C$5, IF(Items!C$6, Curves!C28, 1-Curves!C28), 1) -> 0.7404256439 | D28: =IF(Items!D$5, IF(Items!D$6, Curves!D28, 1-Curves!D28), 1) -> 0.10197427 | E28: =IF(Items!E$5, IF(Items!E$6, Curves!E28, 1-Curves!E28), 1) -> 0.7998527425 | F28: =IF(Items!F$5, IF(Items!F$6, Curves!F28, 1-Curves!F28), 1) -> 0.001946060985 | G28: 0.000109015156
A29: -3.3 | B29: =IF(Items!B$5, IF(Items!B$6, Curves!B29, 1-Curves!B29), 1) -> 0.9152894343 | C29: =IF(Items!C$5, IF(Items!C$6, Curves!C29, 1-Curves!C29), 1) -> 0.7352692262 | D29: =IF(Items!D$5, IF(Items!D$6, Curves!D29, 1-Curves!D29), 1) -> 0.1023626082 | E29: =IF(Items!E$5, IF(Items!E$6, Curves!E29, 1-Curves!E29), 1) -> 0.7998201466 | F29: =IF(Items!F$5, IF(Items!F$6, Curves!F29, 1-Curves!F29), 1) -> 0.002193633357 | G29: 0.0001208655584
A30: -3.2 | B30: =IF(Items!B$5, IF(Items!B$6, Curves!B30, 1-Curves!B30), 1) -> 0.9011439268 | C30: =IF(Items!C$5, IF(Items!C$6, Curves!C30, 1-Curves!C30), 1) -> 0.7297088681 | D30: =IF(Items!D$5, IF(Items!D$6, Curves!D30, 1-Curves!D30), 1) -> 0.102827092 | E30: =IF(Items!E$5, IF(Items!E$6, Curves!E30, 1-Curves!E30), 1) -> 0.7997803375 | F30: =IF(Items!F$5, IF(Items!F$6, Curves!F30, 1-Curves!F30), 1) -> 0.002472623157 | G30: 0.0001337149583
A31: -3.1 | B31: =IF(Items!B$5, IF(Items!B$6, Curves!B31, 1-Curves!B31), 1) -> 0.884933268 | C31: =IF(Items!C$5, IF(Items!C$6, Curves!C31, 1-Curves!C31), 1) -> 0.7237204281 | D31: =IF(Items!D$5, IF(Items!D$6, Curves!D31, 1-Curves!D31), 1) -> 0.1033825481 | E31: =IF(Items!E$5, IF(Items!E$6, Curves!E31, 1-Curves!E31), 1) -> 0.7997317199 | F31: =IF(Items!F$5, IF(Items!F$6, Curves!F31, 1-Curves!F31), 1) -> 0.002786996219 | G31: 0.000147573809
A32: -3 | B32: =IF(Items!B$5, IF(Items!B$6, Curves!B32, 1-Curves!B32), 1) -> 0.8664582775 | C32: =IF(Items!C$5, IF(Items!C$6, Curves!C32, 1-Curves!C32), 1) -> 0.7172796388 | D32: =IF(Items!D$5, IF(Items!D$6, Curves!D32, 1-Curves!D32), 1) -> 0.1040466458 | E32: =IF(Items!E$5, IF(Items!E$6, Curves!E32, 1-Curves!E32), 1) -> 0.7996723463 | F32: =IF(Items!F$5, IF(Items!F$6, Curves!F32, 1-Curves!F32), 1) -> 0.003141213285 | G32: 0.0001624328056
A33: -2.9 | B33: =IF(Items!B$5, IF(Items!B$6, Curves!B33, 1-Curves!B33), 1) -> 0.8455347349 | C33: =IF(Items!C$5, IF(Items!C$6, Curves!C33, 1-Curves!C33), 1) -> 0.7103623692 | D33: =IF(Items!D$5, IF(Items!D$6, Curves!D33, 1-Curves!D33), 1) -> 0.1048404225 | E33: =IF(Items!E$5, IF(Items!E$6, Curves!E33, 1-Curves!E33), 1) -> 0.7995998391 | F33: =IF(Items!F$5, IF(Items!F$6, Curves!F33, 1-Curves!F33), 1) -> 0.003540290221 | G33: 0.0001782591068
A34: -2.8 | B34: =IF(Items!B$5, IF(Items!B$6, Curves!B34, 1-Curves!B34), 1) -> 0.8220063142 | C34: =IF(Items!C$5, IF(Items!C$6, Curves!C34, 1-Curves!C34), 1) -> 0.7029449297 | D34: =IF(Items!D$5, IF(Items!D$6, Curves!D34, 1-Curves!D34), 1) -> 0.1057888976 | E34: =IF(Items!E$5, IF(Items!E$6, Curves!E34, 1-Curves!E34), 1) -> 0.7995112965 | F34: =IF(Items!F$5, IF(Items!F$6, Curves!F34, 1-Curves!F34), 1) -> 0.003989865149 | G34: 0.0001949931566
A35: -2.7 | B35: =IF(Items!B$5, IF(Items!B$6, Curves!B35, 1-Curves!B35), 1) -> 0.7957596977 | C35: =IF(Items!C$5, IF(Items!C$6, Curves!C35, 1-Curves!C35), 1) -> 0.6950044244 | D35: =IF(Items!D$5, IF(Items!D$6, Curves!D35, 1-Curves!D35), 1) -> 0.1069217883 | E35: =IF(Items!E$5, IF(Items!E$6, Curves!E35, 1-Curves!E35), 1) -> 0.7994031769 | F35: =IF(Items!F$5, IF(Items!F$6, Curves!F35, 1-Curves!F35), 1) -> 0.004496273161 | G35: 0.0002125466581
A36: -2.6 | B36: =IF(Items!B$5, IF(Items!B$6, Curves!B36, 1-Curves!B36), 1) -> 0.7667410642 | C36: =IF(Items!C$5, IF(Items!C$6, Curves!C36, 1-Curves!C36), 1) -> 0.6865191481 | D36: =IF(Items!D$5, IF(Items!D$6, Curves!D36, 1-Curves!D36), 1) -> 0.1082743348 | E36: =IF(Items!E$5, IF(Items!E$6, Curves!E36, 1-Curves!E36), 1) -> 0.799271159 | F36: =IF(Items!F$5, IF(Items!F$6, Curves!F36, 1-Curves!F36), 1) -> 0.005066629333 | G36: 0.0002308023242
A37: -2.5 | B37: =IF(Items!B$5, IF(Items!B$6, Curves!B37, 1-Curves!B37), 1) -> 0.7349725995 | C37: =IF(Items!C$5, IF(Items!C$6, Curves!C37, 1-Curves!C37), 1) -> 0.6774690274 | D37: =IF(Items!D$5, IF(Items!D$6, Curves!D37, 1-Curves!D37), 1) -> 0.1098882484 | E37: =IF(Items!E$5, IF(Items!E$6, Curves!E37, 1-Curves!E37), 1) -> 0.7991099712 | F37: =IF(Items!F$5, IF(Items!F$6, Curves!F37, 1-Curves!F37), 1) -> 0.005708920777 | G37: 0.0002496159946
A38: -2.4 | B38: =IF(Items!B$5, IF(Items!B$6, Curves!B38, 1-Curves!B38), 1) -> 0.7005671425 | C38: =IF(Items!C$5, IF(Items!C$6, Curves!C38, 1-Curves!C38), 1) -> 0.6678361038 | D38: =IF(Items!D$5, IF(Items!D$6, Curves!D38, 1-Curves!D38), 1) -> 0.1118127865 | E38: =IF(Items!E$5, IF(Items!E$6, Curves!E38, 1-Curves!E38), 1) -> 0.798913184 | F38: =IF(Items!F$5, IF(Items!F$6, Curves!F38, 1-Curves!F38), 1) -> 0.006432108467 | G38: 0.0002688215473
A39: -2.3 | B39: =IF(Items!B$5, IF(Items!B$6, Curves!B39, 1-Curves!B39), 1) -> 0.6637386974 | C39: =IF(Items!C$5, IF(Items!C$6, Curves!C39, 1-Curves!C39), 1) -> 0.6576050514 | D39: =IF(Items!D$5, IF(Items!D$6, Curves!D39, 1-Curves!D39), 1) -> 0.1141059593 | E39: =IF(Items!E$5, IF(Items!E$6, Curves!E39, 1-Curves!E39), 1) -> 0.7986729591 | F39: =IF(Items!F$5, IF(Items!F$6, Curves!F39, 1-Curves!F39), 1) -> 0.007246239596 | G39: 0.0002882386905
A40: -2.2 | B40: =IF(Items!B$5, IF(Items!B$6, Curves!B40, 1-Curves!B40), 1) -> 0.6248064745 | C40: =IF(Items!C$5, IF(Items!C$6, Curves!C40, 1-Curves!C40), 1) -> 0.6467637212 | D40: =IF(Items!D$5, IF(Items!D$6, Curves!D40, 1-Curves!D40), 1) -> 0.116835859 | E40: =IF(Items!E$5, IF(Items!E$6, Curves!E40, 1-Curves!E40), 1) -> 0.7983797437 | F40: =IF(Items!F$5, IF(Items!F$6, Curves!F40, 1-Curves!F40), 1) -> 0.008162571153 | G40: 0.0003076832241
A41: -2.1 | B41: =IF(Items!B$5, IF(Items!B$6, Curves!B41, 1-Curves!B41), 1) -> 0.5841905229 | C41: =IF(Items!C$5, IF(Items!C$6, Curves!C41, 1-Curves!C41), 1) -> 0.6353037026 | D41: =IF(Items!D$5, IF(Items!D$6, Curves!D41, 1-Curves!D41), 1) -> 0.1200820948 | E41: =IF(Items!E$5, IF(Items!E$6, Curves!E41, 1-Curves!E41), 1) -> 0.7980219015 | F41: =IF(Items!F$5, IF(Items!F$6, Curves!F41, 1-Curves!F41), 1) -> 0.009193705367 | G41: 0.0003269787593
A42: -2 | B42: =IF(Items!B$5, IF(Items!B$6, Curves!B42, 1-Curves!B42), 1) -> 0.5423979408 | C42: =IF(Items!C$5, IF(Items!C$6, Curves!C42, 1-Curves!C42), 1) -> 0.6232208862 | D42: =IF(Items!D$5, IF(Items!D$6, Curves!D42, 1-Curves!D42), 1) -> 0.1239372942 | E42: =IF(Items!E$5, IF(Items!E$6, Curves!E42, 1-Curves!E42), 1) -> 0.7975852669 | F42: =IF(Items!F$5, IF(Items!F$6, Curves!F42, 1-Curves!F42), 1) -> 0.01035373753 | G42: 0.0003459683071
A43: -1.9 | B43: =IF(Items!B$5, IF(Items!B$6, Curves!B43, 1-Curves!B43), 1) -> 0.5 | C43: =IF(Items!C$5, IF(Items!C$6, Curves!C43, 1-Curves!C43), 1) -> 0.6105160126 | D43: =IF(Items!D$5, IF(Items!D$6, Curves!D43, 1-Curves!D43), 1) -> 0.1285086055 | E43: =IF(Items!E$5, IF(Items!E$6, Curves!E43, 1-Curves!E43), 1) -> 0.7970526081 | F43: =IF(Items!F$5, IF(Items!F$6, Curves!F43, 1-Curves!F43), 1) -> 0.01165841655 | G43: 0.0003645237507
A44: -1.8 | B44: =IF(Items!B$5, IF(Items!B$6, Curves!B44, 1-Curves!B44), 1) -> 0.4576020592 | C44: =IF(Items!C$5, IF(Items!C$6, Curves!C44, 1-Curves!C44), 1) -> 0.5971951867 | D44: =IF(Items!D$5, IF(Items!D$6, Curves!D44, 1-Curves!D44), 1) -> 0.1339191015 | E44: =IF(Items!E$5, IF(Items!E$6, Curves!E44, 1-Curves!E44), 1) -> 0.7964029815 | F44: =IF(Items!F$5, IF(Items!F$6, Curves!F44, 1-Curves!F44), 1) -> 0.01312531834 | G44: 0.0003825511556
A45: -1.7 | B45: =IF(Items!B$5, IF(Items!B$6, Curves!B45, 1-Curves!B45), 1) -> 0.4158094771 | C45: =IF(Items!C$5, IF(Items!C$6, Curves!C45, 1-Curves!C45), 1) -> 0.5832703379 | D45: =IF(Items!D$5, IF(Items!D$6, Curves!D45, 1-Curves!D45), 1) -> 0.1403089327 | E45: =IF(Items!E$5, IF(Items!E$6, Curves!E45, 1-Curves!E45), 1) -> 0.7956109609 | F45: =IF(Items!F$5, IF(Items!F$6, Curves!F45, 1-Curves!F45), 1) -> 0.01477403169 | G45: 0.0003999902264
A46: -1.6 | B46: =IF(Items!B$5, IF(Items!B$6, Curves!B46, 1-Curves!B46), 1) -> 0.3751935255 | C46: =IF(Items!C$5, IF(Items!C$6, Curves!C46, 1-Curves!C46), 1) -> 0.5687596021 | D46: =IF(Items!D$5, IF(Items!D$6, Curves!D46, 1-Curves!D46), 1) -> 0.1478360228 | E46: =IF(Items!E$5, IF(Items!E$6, Curves!E46, 1-Curves!E46), 1) -> 0.7946457193 | F46: =IF(Items!F$5, IF(Items!F$6, Curves!F46, 1-Curves!F46), 1) -> 0.01662635611 | G46: 0.0004168069708
A47: -1.5 | B47: =IF(Items!B$5, IF(Items!B$6, Curves!B47, 1-Curves!B47), 1) -> 0.3362613026 | C47: =IF(Items!C$5, IF(Items!C$6, Curves!C47, 1-Curves!C47), 1) -> 0.5536876034 | D47: =IF(Items!D$5, IF(Items!D$6, Curves!D47, 1-Curves!D47), 1) -> 0.1566760205 | E47: =IF(Items!E$5, IF(Items!E$6, Curves!E47, 1-Curves!E47), 1) -> 0.7934699431 | F47: =IF(Items!F$5, IF(Items!F$6, Curves!F47, 1-Curves!F47), 1) -> 0.01870650995 | G47: 0.0004329796377
A48: -1.4 | B48: =IF(Items!B$5, IF(Items!B$6, Curves!B48, 1-Curves!B48), 1) -> 0.2994328575 | C48: =IF(Items!C$5, IF(Items!C$6, Curves!C48, 1-Curves!C48), 1) -> 0.5380856137 | D48: =IF(Items!D$5, IF(Items!D$6, Curves!D48, 1-Curves!D48), 1) -> 0.1670211506 | E48: =IF(Items!E$5, IF(Items!E$6, Curves!E48, 1-Curves!E48), 1) -> 0.7920385585 | F48: =IF(Items!F$5, IF(Items!F$6, Curves!F48, 1-Curves!F48), 1) -> 0.02104134702 | G48: 0.0004484790605
A49: -1.3 | B49: =IF(Items!B$5, IF(Items!B$6, Curves!B49, 1-Curves!B49), 1) -> 0.2650274005 | C49: =IF(Items!C$5, IF(Items!C$6, Curves!C49, 1-Curves!C49), 1) -> 0.5219915698 | D49: =IF(Items!D$5, IF(Items!D$6, Curves!D49, 1-Curves!D49), 1) -> 0.1790775233 | E49: =IF(Items!E$5, IF(Items!E$6, Curves!E49, 1-Curves!E49), 1) -> 0.790297252 | F49: =IF(Items!F$5, IF(Items!F$6, Curves!F49, 1-Curves!F49), 1) -> 0.02366057816 | G49: 0.000463245458
A50: -1.2 | B50: =IF(Items!B$5, IF(Items!B$6, Curves!B50, 1-Curves!B50), 1) -> 0.2332589358 | C50: =IF(Items!C$5, IF(Items!C$6, Curves!C50, 1-Curves!C50), 1) -> 0.5054499342 | D50: =IF(Items!D$5, IF(Items!D$6, Curves!D50, 1-Curves!D50), 1) -> 0.1930604063 | E50: =IF(Items!E$5, IF(Items!E$6, Curves!E50, 1-Curves!E50), 1) -> 0.7881807746 | F50: =IF(Items!F$5, IF(Items!F$6, Curves!F50, 1-Curves!F50), 1) -> 0.02659699358 | G50: 0.0004771644013
A51: -1.1 | B51: =IF(Items!B$5, IF(Items!B$6, Curves!B51, 1-Curves!B51), 1) -> 0.2042403023 | C51: =IF(Items!C$5, IF(Items!C$6, Curves!C51, 1-Curves!C51), 1) -> 0.4885113872 | D51: =IF(Items!D$5, IF(Items!D$6, Curves!D51, 1-Curves!D51), 1) -> 0.2091869541 | E51: =IF(Items!E$5, IF(Items!E$6, Curves!E51, 1-Curves!E51), 1) -> 0.785611032 | F51: =IF(Items!F$5, IF(Items!F$6, Curves!F51, 1-Curves!F51), 1) -> 0.0298866798 | G51: 0.0004900450161
A52: -1 | B52: =IF(Items!B$5, IF(Items!B$6, Curves!B52, 1-Curves!B52), 1) -> 0.1779936858 | C52: =IF(Items!C$5, IF(Items!C$6, Curves!C52, 1-Curves!C52), 1) -> 0.4712323472 | D52: =IF(Items!D$5, IF(Items!D$6, Curves!D52, 1-Curves!D52), 1) -> 0.2276659584 | E52: =IF(Items!E$5, IF(Items!E$6, Curves!E52, 1-Curves!E52), 1) -> 0.7824949833 | F52: =IF(Items!F$5, IF(Items!F$6, Curves!F52, 1-Curves!F52), 1) -> 0.03356922328 | G52: 0.0005016035983
A53: -0.9 | B53: =IF(Items!B$5, IF(Items!B$6, Curves!B53, 1-Curves!B53), 1) -> 0.1544652651 | C53: =IF(Items!C$5, IF(Items!C$6, Curves!C53, 1-Curves!C53), 1) -> 0.453674324 | D53: =IF(Items!D$5, IF(Items!D$6, Curves!D53, 1-Curves!D53), 1) -> 0.2486843832 | E53: =IF(Items!E$5, IF(Items!E$6, Curves!E53, 1-Curves!E53), 1) -> 0.7787224051 | F53: =IF(Items!F$5, IF(Items!F$6, Curves!F53, 1-Curves!F53), 1) -> 0.03768789051 | G53: 0.0005114557294
A54: -0.8 | B54: =IF(Items!B$5, IF(Items!B$6, Curves!B54, 1-Curves!B54), 1) -> 0.1335417225 | C54: =IF(Items!C$5, IF(Items!C$6, Curves!C54, 1-Curves!C54), 1) -> 0.4359031139 | D54: =IF(Items!D$5, IF(Items!D$6, Curves!D54, 1-Curves!D54), 1) -> 0.2723908137 | E54: =IF(Items!E$5, IF(Items!E$6, Curves!E54, 1-Curves!E54), 1) -> 0.7741636282 | F54: =IF(Items!F$5, IF(Items!F$6, Curves!F54, 1-Curves!F54), 1) -> 0.04228977184 | G54: 0.0005191196972
A55: -0.7 | B55: =IF(Items!B$5, IF(Items!B$6, Curves!B55, 1-Curves!B55), 1) -> 0.115066732 | C55: =IF(Items!C$5, IF(Items!C$6, Curves!C55, 1-Curves!C55), 1) -> 0.4179878598 | D55: =IF(Items!D$5, IF(Items!D$6, Curves!D55, 1-Curves!D55), 1) -> 0.298876503 | E55: =IF(Items!E$5, IF(Items!E$6, Curves!E55, 1-Curves!E55), 1) -> 0.7686674218 | F55: =IF(Items!F$5, IF(Items!F$6, Curves!F55, 1-Curves!F55), 1) -> 0.04742587318 | G55: 0.0005240334756
A56: -0.6 | B56: =IF(Items!B$5, IF(Items!B$6, Curves!B56, 1-Curves!B56), 1) -> 0.09885607318 | C56: =IF(Items!C$5, IF(Items!C$6, Curves!C56, 1-Curves!C56), 1) -> 0.4 | D56: =IF(Items!D$5, IF(Items!D$6, Curves!D56, 1-Curves!D56), 1) -> 0.328155415 | E56: =IF(Items!E$5, IF(Items!E$6, Curves!E56, 1-Curves!E56), 1) -> 0.7620593015 | F56: =IF(Items!F$5, IF(Items!F$6, Curves!F56, 1-Curves!F56), 1) -> 0.0531511364 | G56: 0.0005255865517
A57: -0.5 | B57: =IF(Items!B$5, IF(Items!B$6, Curves!B57, 1-Curves!B57), 1) -> 0.08471056573 | C57: =IF(Items!C$5, IF(Items!C$6, Curves!C57, 1-Curves!C57), 1) -> 0.3820121402 | D57: =IF(Items!D$5, IF(Items!D$6, Curves!D57, 1-Curves!D57), 1) -> 0.3601454476 | E57: =IF(Items!E$5, IF(Items!E$6, Curves!E57, 1-Curves!E57), 1) -> 0.7541406593 | F57: =IF(Items!F$5, IF(Items!F$6, Curves!F57, 1-Curves!F57), 1) -> 0.05952436598 | G57: 0.0005231663603
A58: -0.4 | B58: =IF(Items!B$5, IF(Items!B$6, Curves!B58, 1-Curves!B58), 1) -> 0.07242648536 | C58: =IF(Items!C$5, IF(Items!C$6, Curves!C58, 1-Curves!C58), 1) -> 0.3640968861 | D58: =IF(Items!D$5, IF(Items!D$6, Curves!D58, 1-Curves!D58), 1) -> 0.3946536846 | E58: =IF(Items!E$5, IF(Items!E$6, Curves!E58, 1-Curves!E58), 1) -> 0.7446892637 | F58: =IF(Items!F$5, IF(Items!F$6, Curves!F58, 1-Curves!F58), 1) -> 0.06660803558 | G58: 0.0005162169439
A59: -0.3 | B59: =IF(Items!B$5, IF(Items!B$6, Curves!B59, 1-Curves!B59), 1) -> 0.06180346626 | C59: =IF(Items!C$5, IF(Items!C$6, Curves!C59, 1-Curves!C59), 1) -> 0.346325676 | D59: =IF(Items!D$5, IF(Items!D$6, Curves!D59, 1-Curves!D59), 1) -> 0.431368824 | E59: =IF(Items!E$5, IF(Items!E$6, Curves!E59, 1-Curves!E59), 1) -> 0.7334618428 | F59: =IF(Items!F$5, IF(Items!F$6, Curves!F59, 1-Curves!F59), 1) -> 0.07446794517 | G59: 0.0005043048838
A60: -0.2 | B60: =IF(Items!B$5, IF(Items!B$6, Curves!B60, 1-Curves!B60), 1) -> 0.05265011844 | C60: =IF(Items!C$5, IF(Items!C$6, Curves!C60, 1-Curves!C60), 1) -> 0.3287676528 | D60: =IF(Items!D$5, IF(Items!D$6, Curves!D60, 1-Curves!D60), 1) -> 0.4698636093 | E60: =IF(Items!E$5, IF(Items!E$6, Curves!E60, 1-Curves!E60), 1) -> 0.7201996087 | F60: =IF(Items!F$5, IF(Items!F$6, Curves!F60, 1-Curves!F60), 1) -> 0.08317269649 | G60: 0.0004871849983
A61: -0.1 | B61: =IF(Items!B$5, IF(Items!B$6, Curves!B61, 1-Curves!B61), 1) -> 0.04478770305 | C61: =IF(Items!C$5, IF(Items!C$6, Curves!C61, 1-Curves!C61), 1) -> 0.3114886128 | D61: =IF(Items!D$5, IF(Items!D$6, Curves!D61, 1-Curves!D61), 1) -> 0.5096089969 | E61: =IF(Items!E$5, IF(Items!E$6, Curves!E61, 1-Curves!E61), 1) -> 0.7046376624 | F61: =IF(Items!F$5, IF(Items!F$6, Curves!F61, 1-Curves!F61), 1) -> 0.09279295312 | G61: 0.0004648564913
A62: -2.042810365e-14 | B62: =IF(Items!B$5, IF(Items!B$6, Curves!B62, 1-Curves!B62), 1) -> 0.03805224707 | C62: =IF(Items!C$5, IF(Items!C$6, Curves!C62, 1-Curves!C62), 1) -> 0.2945500658 | D62: =IF(Items!D$5, IF(Items!D$6, Curves!D62, 1-Curves!D62), 1) -> 0.55 | E62: =IF(Items!E$5, IF(Items!E$6, Curves!E62, 1-Curves!E62), 1) -> 0.6865191481 | F62: =IF(Items!F$5, IF(Items!F$6, Curves!F62, 1-Curves!F62), 1) -> 0.1034004515 | G62: 0.0004375998973
A63: 0.1 | B63: =IF(Items!B$5, IF(Items!B$6, Curves!B63, 1-Curves!B63), 1) -> 0.0322954647 | C63: =IF(Items!C$5, IF(Items!C$6, Curves!C63, 1-Curves!C63), 1) -> 0.2780084302 | D63: =IF(Items!D$5, IF(Items!D$6, Curves!D63, 1-Curves!D63), 1) -> 0.5903910031 | E63: =IF(Items!E$5, IF(Items!E$6, Curves!E63, 1-Curves!E63), 1) -> 0.6656147081 | F63: =IF(Items!F$5, IF(Items!F$6, Curves!F63, 1-Curves!F63), 1) -> 0.115066732 | G63: 0.0004059868093
A64: 0.2 | B64: =IF(Items!B$5, IF(Items!B$6, Curves!B64, 1-Curves!B64), 1) -> 0.02738481095 | C64: =IF(Items!C$5, IF(Items!C$6, Curves!C64, 1-Curves!C64), 1) -> 0.2619143863 | D64: =IF(Items!D$5, IF(Items!D$6, Curves!D64, 1-Curves!D64), 1) -> 0.6301363907 | E64: =IF(Items!E$5, IF(Items!E$6, Curves!E64, 1-Curves!E64), 1) -> 0.6417471108 | F64: =IF(Items!F$5, IF(Items!F$6, Curves!F64, 1-Curves!F64), 1) -> 0.1278615663 | G64: 0.0003708579595
A65: 0.3 | B65: =IF(Items!B$5, IF(Items!B$6, Curves!B65, 1-Curves!B65), 1) -> 0.02320293815 | C65: =IF(Items!C$5, IF(Items!C$6, Curves!C65, 1-Curves!C65), 1) -> 0.2463123966 | D65: =IF(Items!D$5, IF(Items!D$6, Curves!D65, 1-Curves!D65), 1) -> 0.668631176 | E65: =IF(Items!E$5, IF(Items!E$6, Curves!E65, 1-Curves!E65), 1) -> 0.6148198268 | F65: =IF(Items!F$5, IF(Items!F$6, Curves!F65, 1-Curves!F65), 1) -> 0.1418510649 | G65: 0.0003332700903
A66: 0.4 | B66: =IF(Items!B$5, IF(Items!B$6, Curves!B66, 1-Curves!B66), 1) -> 0.01964676995 | C66: =IF(Items!C$5, IF(Items!C$6, Curves!C66, 1-Curves!C66), 1) -> 0.2312403979 | D66: =IF(Items!D$5, IF(Items!D$6, Curves!D66, 1-Curves!D66), 1) -> 0.7053463154 | E66: =IF(Items!E$5, IF(Items!E$6, Curves!E66, 1-Curves!E66), 1) -> 0.5848468629 | F66: =IF(Items!F$5, IF(Items!F$6, Curves!F66, 1-Curves!F66), 1) -> 0.1570954689 | G66: 0.0002944171426
A67: 0.5 | B67: =IF(Items!B$5, IF(Items!B$6, Curves!B67, 1-Curves!B67), 1) -> 0.01662635611 | C67: =IF(Items!C$5, IF(Items!C$6, Curves!C67, 1-Curves!C67), 1) -> 0.2167296621 | D67: =IF(Items!D$5, IF(Items!D$6, Curves!D67, 1-Curves!D67), 1) -> 0.7398545524 | E67: =IF(Items!E$5, IF(Items!E$6, Curves!E67, 1-Curves!E67), 1) -> 0.5519795849 | F67: =IF(Items!F$5, IF(Items!F$6, Curves!F67, 1-Curves!F67), 1) -> 0.173646647 | G67: =PRODUCT(B67:F67) -> 0.0002555354748
A68: 0.6 | B68: =IF(Items!B$5, IF(Items!B$6, Curves!B68, 1-Curves!B68), 1) -> 0.01406362704 | C68: =IF(Items!C$5, IF(Items!C$6, Curves!C68, 1-Curves!C68), 1) -> 0.2028048133 | D68: =IF(Items!D$5, IF(Items!D$6, Curves!D68, 1-Curves!D68), 1) -> 0.771844585 | E68: =IF(Items!E$5, IF(Items!E$6, Curves!E68, 1-Curves!E68), 1) -> 0.516525045 | F68: =IF(Items!F$5, IF(Items!F$6, Curves!F68, 1-Curves!F68), 1) -> 0.1915453486 | G68: 0.0002178053057
A69: 0.7 | B69: =IF(Items!B$5, IF(Items!B$6, Curves!B69, 1-Curves!B69), 1) -> 0.01189113164 | C69: =IF(Items!C$5, IF(Items!C$6, Curves!C69, 1-Curves!C69), 1) -> 0.1894839874 | D69: =IF(Items!D$5, IF(Items!D$6, Curves!D69, 1-Curves!D69), 1) -> 0.801123497 | E69: =IF(Items!E$5, IF(Items!E$6, Curves!E69, 1-Curves!E69), 1) -> 0.4789501281 | F69: =IF(Items!F$5, IF(Items!F$6, Curves!F69, 1-Curves!F69), 1) -> 0.2108182935 | G69: 0.0001822610045
A70: 0.8 | B70: =IF(Items!B$5, IF(Items!B$6, Curves!B70, 1-Curves!B70), 1) -> 0.01005081388 | C70: =IF(Items!C$5, IF(Items!C$6, Curves!C70, 1-Curves!C70), 1) -> 0.1767791138 | D70: =IF(Items!D$5, IF(Items!D$6, Curves!D70, 1-Curves!D70), 1) -> 0.8276091863 | E70: =IF(Items!E$5, IF(Items!E$6, Curves!E70, 1-Curves!E70), 1) -> 0.4398671978 | F70: =IF(Items!F$5, IF(Items!F$6, Curves!F70, 1-Curves!F70), 1) -> 0.2314752165 | G70: 0.0001497212904
A71: 0.9 | B71: =IF(Items!B$5, IF(Items!B$6, Curves!B71, 1-Curves!B71), 1) -> 0.008492862852 | C71: =IF(Items!C$5, IF(Items!C$6, Curves!C71, 1-Curves!C71), 1) -> 0.1646962974 | D71: =IF(Items!D$5, IF(Items!D$6, Curves!D71, 1-Curves!D71), 1) -> 0.8513156168 | E71: =IF(Items!E$5, IF(Items!E$6, Curves!E71, 1-Curves!E71), 1) -> 0.4 | F71: =IF(Items!F$5, IF(Items!F$6, Curves!F71, 1-Curves!F71), 1) -> 0.2535060167 | G71: 0.000120747128
A72: 1 | B72: =IF(Items!B$5, IF(Items!B$6, Curves!B72, 1-Curves!B72), 1) -> 0.007174655609 | C72: =IF(Items!C$5, IF(Items!C$6, Curves!C72, 1-Curves!C72), 1) -> 0.1532362788 | D72: =IF(Items!D$5, IF(Items!D$6, Curves!D72, 1-Curves!D72), 1) -> 0.8723340416 | E72: =IF(Items!E$5, IF(Items!E$6, Curves!E72, 1-Curves!E72), 1) -> 0.3601328022 | F72: =IF(Items!F$5, IF(Items!F$6, Curves!F72, 1-Curves!F72), 1) -> 0.2768781949 | G72: 9.563060693e-05
A73: 1.1 | B73: =IF(Items!B$5, IF(Items!B$6, Curves!B73, 1-Curves!B73), 1) -> 0.006059801492 | C73: =IF(Items!C$5, IF(Items!C$6, Curves!C73, 1-Curves!C73), 1) -> 0.1423949486 | D73: =IF(Items!D$5, IF(Items!D$6, Curves!D73, 1-Curves!D73), 1) -> 0.8908130459 | E73: =IF(Items!E$5, IF(Items!E$6, Curves!E73, 1-Curves!E73), 1) -> 0.3210498719 | F73: =IF(Items!F$5, IF(Items!F$6, Curves!F73, 1-Curves!F73), 1) -> 0.301534784 | G73: 7.441311221e-05
A74: 1.2 | B74: =IF(Items!B$5, IF(Items!B$6, Curves!B74, 1-Curves!B74), 1) -> 0.00511728923 | C74: =IF(Items!C$5, IF(Items!C$6, Curves!C74, 1-Curves!C74), 1) -> 0.1321638962 | D74: =IF(Items!D$5, IF(Items!D$6, Curves!D74, 1-Curves!D74), 1) -> 0.9069395937 | E74: =IF(Items!E$5, IF(Items!E$6, Curves!E74, 1-Curves!E74), 1) -> 0.283474955 | F74: =IF(Items!F$5, IF(Items!F$6, Curves!F74, 1-Curves!F74), 1) -> 0.3273929829 | G74: 5.692659674e-05
A75: 1.3 | B75: =IF(Items!B$5, IF(Items!B$6, Curves!B75, 1-Curves!B75), 1) -> 0.00432073352 | C75: =IF(Items!C$5, IF(Items!C$6, Curves!C75, 1-Curves!C75), 1) -> 0.1225309726 | D75: =IF(Items!D$5, IF(Items!D$6, Curves!D75, 1-Curves!D75), 1) -> 0.9209224767 | E75: =IF(Items!E$5, IF(Items!E$6, Curves!E75, 1-Curves!E75), 1) -> 0.2480204151 | F75: =IF(Items!F$5, IF(Items!F$6, Curves!F75, 1-Curves!F75), 1) -> 0.3543436938 | G75: 4.284879112e-05
A76: 1.4 | B76: =IF(Items!B$5, IF(Items!B$6, Curves!B76, 1-Curves!B76), 1) -> 0.003647714821 | C76: =IF(Items!C$5, IF(Items!C$6, Curves!C76, 1-Curves!C76), 1) -> 0.1134808519 | D76: =IF(Items!D$5, IF(Items!D$6, Curves!D76, 1-Curves!D76), 1) -> 0.9329788494 | E76: =IF(Items!E$5, IF(Items!E$6, Curves!E76, 1-Curves!E76), 1) -> 0.2151531371 | F76: =IF(Items!F$5, IF(Items!F$6, Curves!F76, 1-Curves!F76), 1) -> 0.3822521252 | G76: 3.176236667e-05
A77: 1.5 | B77: =IF(Items!B$5, IF(Items!B$6, Curves!B77, 1-Curves!B77), 1) -> 0.003079204621 | C77: =IF(Items!C$5, IF(Items!C$6, Curves!C77, 1-Curves!C77), 1) -> 0.1049955756 | D77: =IF(Items!D$5, IF(Items!D$6, Curves!D77, 1-Curves!D77), 1) -> 0.9433239795 | E77: =IF(Items!E$5, IF(Items!E$6, Curves!E77, 1-Curves!E77), 1) -> 0.1851801732 | F77: =IF(Items!F$5, IF(Items!F$6, Curves!F77, 1-Curves!F77), 1) -> 0.4109595659 | G77: 2.320940478e-05
A78: 1.6 | B78: =IF(Items!B$5, IF(Items!B$6, Curves!B78, 1-Curves!B78), 1) -> 0.002599067762 | C78: =IF(Items!C$5, IF(Items!C$6, Curves!C78, 1-Curves!C78), 1) -> 0.09705507031 | D78: =IF(Items!D$5, IF(Items!D$6, Curves!D78, 1-Curves!D78), 1) -> 0.9521639772 | E78: =IF(Items!E$5, IF(Items!E$6, Curves!E78, 1-Curves!E78), 1) -> 0.1582528892 | F78: =IF(Items!F$5, IF(Items!F$6, Curves!F78, 1-Curves!F78), 1) -> 0.4402863507 | G78: 1.673533644e-05
A79: 1.7 | B79: =IF(Items!B$5, IF(Items!B$6, Curves!B79, 1-Curves!B79), 1) -> 0.002193633357 | C79: =IF(Items!C$5, IF(Items!C$6, Curves!C79, 1-Curves!C79), 1) -> 0.08963763085 | D79: =IF(Items!D$5, IF(Items!D$6, Curves!D79, 1-Curves!D79), 1) -> 0.9596910673 | E79: =IF(Items!E$5, IF(Items!E$6, Curves!E79, 1-Curves!E79), 1) -> 0.1343852919 | F79: =IF(Items!F$5, IF(Items!F$6, Curves!F79, 1-Curves!F79), 1) -> 0.4700359482 | G79: 1.191979198e-05
A80: 1.8 | B80: =IF(Items!B$5, IF(Items!B$6, Curves!B80, 1-Curves!B80), 1) -> 0.001851326181 | C80: =IF(Items!C$5, IF(Items!C$6, Curves!C80, 1-Curves!C80), 1) -> 0.08272036117 | D80: =IF(Items!D$5, IF(Items!D$6, Curves!D80, 1-Curves!D80), 1) -> 0.9660808985 | E80: =IF(Items!E$5, IF(Items!E$6, Curves!E80, 1-Curves!E80), 1) -> 0.1134808519 | F80: =IF(Items!F$5, IF(Items!F$6, Curves!F80, 1-Curves!F80), 1) -> 0.5 | G80: 8.39462793e-06
A81: 1.9 | B81: =IF(Items!B$5, IF(Items!B$6, Curves!B81, 1-Curves!B81), 1) -> 0.00156235095 | C81: =IF(Items!C$5, IF(Items!C$6, Curves!C81, 1-Curves!C81), 1) -> 0.07627957192 | D81: =IF(Items!D$5, IF(Items!D$6, Curves!D81, 1-Curves!D81), 1) -> 0.9714913945 | E81: =IF(Items!E$5, IF(Items!E$6, Curves!E81, 1-Curves!E81), 1) -> 0.09536233762 | F81: =IF(Items!F$5, IF(Items!F$6, Curves!F81, 1-Curves!F81), 1) -> 0.5299640518 | G81: 5.851256022e-06
A82: 2 | B82: =IF(Items!B$5, IF(Items!B$6, Curves!B82, 1-Curves!B82), 1) -> 0.001318422553 | C82: =IF(Items!C$5, IF(Items!C$6, Curves!C82, 1-Curves!C82), 1) -> 0.07029113186 | D82: =IF(Items!D$5, IF(Items!D$6, Curves!D82, 1-Curves!D82), 1) -> 0.9760627058 | E82: =IF(Items!E$5, IF(Items!E$6, Curves!E82, 1-Curves!E82), 1) -> 0.0798003913 | F82: =IF(Items!F$5, IF(Items!F$6, Curves!F82, 1-Curves!F82), 1) -> 0.5597136493 | G82: 4.040208687e-06
A83: 2.1 | B83: =IF(Items!B$5, IF(Items!B$6, Curves!B83, 1-Curves!B83), 1) -> 0.001112536033 | C83: =IF(Items!C$5, IF(Items!C$6, Curves!C83, 1-Curves!C83), 1) -> 0.06473077377 | D83: =IF(Items!D$5, IF(Items!D$6, Curves!D83, 1-Curves!D83), 1) -> 0.9799179052 | E83: =IF(Items!E$5, IF(Items!E$6, Curves!E83, 1-Curves!E83), 1) -> 0.0665381572 | F83: =IF(Items!F$5, IF(Items!F$6, Curves!F83, 1-Curves!F83), 1) -> 0.5890404341 | G83: 2.765861657e-06
A84: 2.2 | B84: =IF(Items!B$5, IF(Items!B$6, Curves!B84, 1-Curves!B84), 1) -> 0.0009387707871 | C84: =IF(Items!C$5, IF(Items!C$6, Curves!C84, 1-Curves!C84), 1) -> 0.05957435613 | D84: =IF(Items!D$5, IF(Items!D$6, Curves!D84, 1-Curves!D84), 1) -> 0.983164141 | E84: =IF(Items!E$5, IF(Items!E$6, Curves!E84, 1-Curves!E84), 1) -> 0.05531073627 | F84: =IF(Items!F$5, IF(Items!F$6, Curves!F84, 1-Curves!F84), 1) -> 0.6177478748 | G84: 1.878735552e-06
A85: 2.3 | B85: =IF(Items!B$5, IF(Items!B$6, Curves!B85, 1-Curves!B85), 1) -> 0.0007921241384 | C85: =IF(Items!C$5, IF(Items!C$6, Curves!C85, 1-Curves!C85), 1) -> 0.05479808298 | D85: =IF(Items!D$5, IF(Items!D$6, Curves!D85, 1-Curves!D85), 1) -> 0.9858940407 | E85: =IF(Items!E$5, IF(Items!E$6, Curves!E85, 1-Curves!E85), 1) -> 0.04585934072 | F85: =IF(Items!F$5, IF(Items!F$6, Curves!F85, 1-Curves!F85), 1) -> 0.6456563062 | G85: 1.267120914e-06
A86: 2.4 | B86: =IF(Items!B$5, IF(Items!B$6, Curves!B86, 1-Curves!B86), 1) -> 0.0006683700348 | C86: =IF(Items!C$5, IF(Items!C$6, Curves!C86, 1-Curves!C86), 1) -> 0.05037868485 | D86: =IF(Items!D$5, IF(Items!D$6, Curves!D86, 1-Curves!D86), 1) -> 0.9881872135 | E86: =IF(Items!E$5, IF(Items!E$6, Curves!E86, 1-Curves!E86), 1) -> 0.03794069854 | F86: =IF(Items!F$5, IF(Items!F$6, Curves!F86, 1-Curves!F86), 1) -> 0.6726070171 | G86: 8.491213158e-07
A87: 2.5 | B87: =IF(Items!B$5, IF(Items!B$6, Curves!B87, 1-Curves!B87), 1) -> 0.0005639392087 | C87: =IF(Items!C$5, IF(Items!C$6, Curves!C87, 1-Curves!C87), 1) -> 0.04629356422 | D87: =IF(Items!D$5, IF(Items!D$6, Curves!D87, 1-Curves!D87), 1) -> 0.9901117516 | E87: =IF(Items!E$5, IF(Items!E$6, Curves!E87, 1-Curves!E87), 1) -> 0.03133257824 | F87: =IF(Items!F$5, IF(Items!F$6, Curves!F87, 1-Curves!F87), 1) -> 0.698465216 | G87: 5.656893995e-07
A88: 2.6 | B88: =IF(Items!B$5, IF(Items!B$6, Curves!B88, 1-Curves!B88), 1) -> 0.0004758176188 | C88: =IF(Items!C$5, IF(Items!C$6, Curves!C88, 1-Curves!C88), 1) -> 0.04252090912 | D88: =IF(Items!D$5, IF(Items!D$6, Curves!D88, 1-Curves!D88), 1) -> 0.9917256652 | E88: =IF(Items!E$5, IF(Items!E$6, Curves!E88, 1-Curves!E88), 1) -> 0.02583637176 | F88: =IF(Items!F$5, IF(Items!F$6, Curves!F88, 1-Curves!F88), 1) -> 0.7231218051 | G88: 3.748673324e-07
A89: 2.7 | B89: =IF(Items!B$5, IF(Items!B$6, Curves!B89, 1-Curves!B89), 1) -> 0.0004014604476 | C89: =IF(Items!C$5, IF(Items!C$6, Curves!C89, 1-Curves!C89), 1) -> 0.0390397784 | D89: =IF(Items!D$5, IF(Items!D$6, Curves!D89, 1-Curves!D89), 1) -> 0.9930782117 | E89: =IF(Items!E$5, IF(Items!E$6, Curves!E89, 1-Curves!E89), 1) -> 0.02127759486 | F89: =IF(Items!F$5, IF(Items!F$6, Curves!F89, 1-Curves!F89), 1) -> 0.7464939833 | G89: 2.472193208e-07
A90: 2.8 | B90: =IF(Items!B$5, IF(Items!B$6, Curves!B90, 1-Curves!B90), 1) -> 0.0003387193137 | C90: =IF(Items!C$5, IF(Items!C$6, Curves!C90, 1-Curves!C90), 1) -> 0.03583016244 | D90: =IF(Items!D$5, IF(Items!D$6, Curves!D90, 1-Curves!D90), 1) -> 0.9942111024 | E90: =IF(Items!E$5, IF(Items!E$6, Curves!E90, 1-Curves!E90), 1) -> 0.01750501675 | F90: =IF(Items!F$5, IF(Items!F$6, Curves!F90, 1-Curves!F90), 1) -> 0.7685247835 | G90: 1.623258757e-07
A91: 2.9 | B91: =IF(Items!B$5, IF(Items!B$6, Curves!B91, 1-Curves!B91), 1) -> 0.0002857807008 | C91: =IF(Items!C$5, IF(Items!C$6, Curves!C91, 1-Curves!C91), 1) -> 0.03287302256 | D91: =IF(Items!D$5, IF(Items!D$6, Curves!D91, 1-Curves!D91), 1) -> 0.9951595775 | E91: =IF(Items!E$5, IF(Items!E$6, Curves!E91, 1-Curves!E91), 1) -> 0.01438896797 | F91: =IF(Items!F$5, IF(Items!F$6, Curves!F91, 1-Curves!F91), 1) -> 0.7891817065 | G91: 1.061626907e-07
A92: 3 | B92: =IF(Items!B$5, IF(Items!B$6, Curves!B92, 1-Curves!B92), 1) -> 0.0002411138949 | C92: =IF(Items!C$5, IF(Items!C$6, Curves!C92, 1-Curves!C92), 1) -> 0.03015031241 | D92: =IF(Items!D$5, IF(Items!D$6, Curves!D92, 1-Curves!D92), 1) -> 0.9959533542 | E92: =IF(Items!E$5, IF(Items!E$6, Curves!E92, 1-Curves!E92), 1) -> 0.01181922535 | F92: =IF(Items!F$5, IF(Items!F$6, Curves!F92, 1-Curves!F92), 1) -> 0.8084546514 | G92: 6.918273567e-08
A93: 3.1 | B93: =IF(Items!B$5, IF(Items!B$6, Curves!B93, 1-Curves!B93), 1) -> 0.0002034269781 | C93: =IF(Items!C$5, IF(Items!C$6, Curves!C93, 1-Curves!C93), 1) -> 0.02764498423 | D93: =IF(Items!D$5, IF(Items!D$6, Curves!D93, 1-Curves!D93), 1) -> 0.9966174519 | E93: =IF(Items!E$5, IF(Items!E$6, Curves!E93, 1-Curves!E93), 1) -> 0.009702747987 | F93: =IF(Items!F$5, IF(Items!F$6, Curves!F93, 1-Curves!F93), 1) -> 0.826353353 | G93: 4.493801937e-08
A94: 3.2 | B94: =IF(Items!B$5, IF(Items!B$6, Curves!B94, 1-Curves!B94), 1) -> 0.0001716296424 | C94: =IF(Items!C$5, IF(Items!C$6, Curves!C94, 1-Curves!C94), 1) -> 0.0253409827 | D94: =IF(Items!D$5, IF(Items!D$6, Curves!D94, 1-Curves!D94), 1) -> 0.997172908 | E94: =IF(Items!E$5, IF(Items!E$6, Curves!E94, 1-Curves!E94), 1) -> 0.007961441494 | F94: =IF(Items!F$5, IF(Items!F$6, Curves!F94, 1-Curves!F94), 1) -> 0.8429045311 | G94: 2.910424364e-08
A95: 3.3 | B95: =IF(Items!B$5, IF(Items!B$6, Curves!B95, 1-Curves!B95), 1) -> 0.0001448017761 | C95: =IF(Items!C$5, IF(Items!C$6, Curves!C95, 1-Curves!C95), 1) -> 0.02322322867 | D95: =IF(Items!D$5, IF(Items!D$6, Curves!D95, 1-Curves!D95), 1) -> 0.9976373918 | E95: =IF(Items!E$5, IF(Items!E$6, Curves!E95, 1-Curves!E95), 1) -> 0.006530056923 | F95: =IF(Items!F$5, IF(Items!F$6, Curves!F95, 1-Curves!F95), 1) -> 0.8581489351 | G95: 1.879961003e-08
A96: 3.4 | B96: =IF(Items!B$5, IF(Items!B$6, Curves!B96, 1-Curves!B96), 1) -> 0.0001221669294 | C96: =IF(Items!C$5, IF(Items!C$6, Curves!C96, 1-Curves!C96), 1) -> 0.02127759486 | D96: =IF(Items!D$5, IF(Items!D$6, Curves!D96, 1-Curves!D96), 1) -> 0.99802573 | E96: =IF(Items!E$5, IF(Items!E$6, Curves!E96, 1-Curves!E96), 1) -> 0.005354280739 | F96: =IF(Items!F$5, IF(Items!F$6, Curves!F96, 1-Curves!F96), 1) -> 0.8721384337 | G96: 1.211447215e-08
A97: 3.5 | B97: =IF(Items!B$5, IF(Items!B$6, Curves!B97, 1-Curves!B97), 1) -> 0.0001030699086 | C97: =IF(Items!C$5, IF(Items!C$6, Curves!C97, 1-Curves!C97), 1) -> 0.01949087545 | D97: =IF(Items!D$5, IF(Items!D$6, Curves!D97, 1-Curves!D97), 1) -> 0.998350355 | E97: =IF(Items!E$5, IF(Items!E$6, Curves!E97, 1-Curves!E97), 1) -> 0.00438903912 | F97: =IF(Items!F$5, IF(Items!F$6, Curves!F97, 1-Curves!F97), 1) -> 0.884933268 | G97: 7.789797858e-09
A98: 3.6 | B98: =IF(Items!B$5, IF(Items!B$6, Curves!B98, 1-Curves!B98), 1) -> 8.695785677e-05 | C98: =IF(Items!C$5, IF(Items!C$6, Curves!C98, 1-Curves!C98), 1) -> 0.01785075096 | D98: =IF(Items!D$5, IF(Items!D$6, Curves!D98, 1-Curves!D98), 1) -> 0.9986216845 | E98: =IF(Items!E$5, IF(Items!E$6, Curves!E98, 1-Curves!E98), 1) -> 0.003597018529 | F98: =IF(Items!F$5, IF(Items!F$6, Curves!F98, 1-Curves!F98), 1) -> 0.8965995485 | G98: 4.99928046e-09
A99: 3.7 | B99: =IF(Items!B$5, IF(Items!B$6, Curves!B99, 1-Curves!B99), 1) -> 7.336428164e-05 | C99: =IF(Items!C$5, IF(Items!C$6, Curves!C99, 1-Curves!C99), 1) -> 0.01634574985 | D99: =IF(Items!D$5, IF(Items!D$6, Curves!D99, 1-Curves!D99), 1) -> 0.9988484436 | E99: =IF(Items!E$5, IF(Items!E$6, Curves!E99, 1-Curves!E99), 1) -> 0.00294739192 | F99: =IF(Items!F$5, IF(Items!F$6, Curves!F99, 1-Curves!F99), 1) -> 0.9072070469 | G99: 3.20282654e-09
A100: 3.8 | B100: =IF(Items!B$5, IF(Items!B$6, Curves!B100, 1-Curves!B100), 1) -> 6.189557312e-05 | C100: =IF(Items!C$5, IF(Items!C$6, Curves!C100, 1-Curves!C100), 1) -> 0.01496520796 | D100: =IF(Items!D$5, IF(Items!D$6, Curves!D100, 1-Curves!D100), 1) -> 0.9990379364 | E100: =IF(Items!E$5, IF(Items!E$6, Curves!E100, 1-Curves!E100), 1) -> 0.00241473306 | F100: =IF(Items!F$5, IF(Items!F$6, Curves!F100, 1-Curves!F100), 1) -> 0.9168273035 | G100: 2.048712378e-09
A101: 3.9 | B101: =IF(Items!B$5, IF(Items!B$6, Curves!B101, 1-Curves!B101), 1) -> 5.221962264e-05 | C101: =IF(Items!C$5, IF(Items!C$6, Curves!C101, 1-Curves!C101), 1) -> 0.01369922665 | D101: =IF(Items!D$5, IF(Items!D$6, Curves!D101, 1-Curves!D101), 1) -> 0.9991962754 | E101: =IF(Items!E$5, IF(Items!E$6, Curves!E101, 1-Curves!E101), 1) -> 0.001978098525 | F101: =IF(Items!F$5, IF(Items!F$6, Curves!F101, 1-Curves!F101), 1) -> 0.9255320548 | G101: 1.308639336e-09
A102: 4 | B102: =IF(Items!B$5, IF(Items!B$6, Curves!B102, 1-Curves!B102), 1) -> 4.405621803e-05 | C102: =IF(Items!C$5, IF(Items!C$6, Curves!C102, 1-Curves!C102), 1) -> 0.01253863045 | D102: =IF(Items!D$5, IF(Items!D$6, Curves!D102, 1-Curves!D102), 1) -> 0.999328574 | E102: =IF(Items!E$5, IF(Items!E$6, Curves!E102, 1-Curves!E102), 1) -> 0.001620256311 | F102: =IF(Items!F$5, IF(Items!F$6, Curves!F102, 1-Curves!F102), 1) -> 0.9333919644 | G102: 8.348595135e-10
A103: 4.1 | B103: =IF(Items!B$5, IF(Items!B$6, Curves!B103, 1-Curves!B103), 1) -> 3.71689371e-05 | C103: =IF(Items!C$5, IF(Items!C$6, Curves!C103, 1-Curves!C103), 1) -> 0.01147492485 | D103: =IF(Items!D$5, IF(Items!D$6, Curves!D103, 1-Curves!D103), 1) -> 0.999439109 | E103: =IF(Items!E$5, IF(Items!E$6, Curves!E103, 1-Curves!E103), 1) -> 0.001327040864 | F103: =IF(Items!F$5, IF(Items!F$6, Curves!F103, 1-Curves!F103), 1) -> 0.940475634 | G103: 5.320080167e-10
A104: 4.2 | B104: =IF(Items!B$5, IF(Items!B$6, Curves!B104, 1-Curves!B104), 1) -> 3.135830672e-05 | C104: =IF(Items!C$5, IF(Items!C$6, Curves!C104, 1-Curves!C104), 1) -> 0.01050025467 | D104: =IF(Items!D$5, IF(Items!D$6, Curves!D104, 1-Curves!D104), 1) -> 0.9995314563 | E104: =IF(Items!E$5, IF(Items!E$6, Curves!E104, 1-Curves!E104), 1) -> 0.00108681596 | F104: =IF(Items!F$5, IF(Items!F$6, Curves!F104, 1-Curves!F104), 1) -> 0.9468488636 | G104: 3.386768973e-10
A105: 4.3 | B105: =IF(Items!B$5, IF(Items!B$6, Curves!B105, 1-Curves!B105), 1) -> 2.645602979e-05 | C105: =IF(Items!C$5, IF(Items!C$6, Curves!C105, 1-Curves!C105), 1) -> 0.009607363448 | D105: =IF(Items!D$5, IF(Items!D$6, Curves!D105, 1-Curves!D105), 1) -> 0.9996086059 | E105: =IF(Items!E$5, IF(Items!E$6, Curves!E105, 1-Curves!E105), 1) -> 0.0008900288263 | F105: =IF(Items!F$5, IF(Items!F$6, Curves!F105, 1-Curves!F105), 1) -> 0.9525741268 | G105: 2.154079521e-10
A106: 4.4 | B106: =IF(Items!B$5, IF(Items!B$6, Curves!B106, 1-Curves!B106), 1) -> 2.232011383e-05 | C106: =IF(Items!C$5, IF(Items!C$6, Curves!C106, 1-Curves!C106), 1) -> 0.008789554104 | D106: =IF(Items!D$5, IF(Items!D$6, Curves!D106, 1-Curves!D106), 1) -> 0.9996730567 | E106: =IF(Items!E$5, IF(Items!E$6, Curves!E106, 1-Curves!E106), 1) -> 0.0007288409555 | F106: =IF(Items!F$5, IF(Items!F$6, Curves!F106, 1-Curves!F106), 1) -> 0.9577102282 | G106: 1.368951716e-10
A107: 4.5 | B107: =IF(Items!B$5, IF(Items!B$6, Curves!B107, 1-Curves!B107), 1) -> 1.883076045e-05 | C107: =IF(Items!C$5, IF(Items!C$6, Curves!C107, 1-Curves!C107), 1) -> 0.008040651107 | D107: =IF(Items!D$5, IF(Items!D$6, Curves!D107, 1-Curves!D107), 1) -> 0.9997268977 | E107: =IF(Items!E$5, IF(Items!E$6, Curves!E107, 1-Curves!E107), 1) -> 0.0005968230671 | F107: =IF(Items!F$5, IF(Items!F$6, Curves!F107, 1-Curves!F107), 1) -> 0.9623121095 | G107: 8.693647055e-11
A108: 4.6 | B108: =IF(Items!B$5, IF(Items!B$6, Curves!B108, 1-Curves!B108), 1) -> 1.588689683e-05 | C108: =IF(Items!C$5, IF(Items!C$6, Curves!C108, 1-Curves!C108), 1) -> 0.007354964294 | D108: =IF(Items!D$5, IF(Items!D$6, Curves!D108, 1-Curves!D108), 1) -> 0.9997718744 | E108: =IF(Items!E$5, IF(Items!E$6, Curves!E108, 1-Curves!E108), 1) -> 0.0004887034875 | F108: =IF(Items!F$5, IF(Items!F$6, Curves!F108, 1-Curves!F108), 1) -> 0.9664307767 | G108: 5.517428949e-11
A109: 4.7 | B109: =IF(Items!B$5, IF(Items!B$6, Curves!B109, 1-Curves!B109), 1) -> 1.340324919e-05 | C109: =IF(Items!C$5, IF(Items!C$6, Curves!C109, 1-Curves!C109), 1) -> 0.006727254453 | D109: =IF(Items!D$5, IF(Items!D$6, Curves!D109, 1-Curves!D109), 1) -> 0.9998094455 | E109: =IF(Items!E$5, IF(Items!E$6, Curves!E109, 1-Curves!E109), 1) -> 0.0004001608857 | F109: =IF(Items!F$5, IF(Items!F$6, Curves!F109, 1-Curves!F109), 1) -> 0.9701133202 | G109: 3.499631247e-11
A110: 4.8 | B110: =IF(Items!B$5, IF(Items!B$6, Curves!B110, 1-Curves!B110), 1) -> 1.130787347e-05 | C110: =IF(Items!C$5, IF(Items!C$6, Curves!C110, 1-Curves!C110), 1) -> 0.006152700705 | D110: =IF(Items!D$5, IF(Items!D$6, Curves!D110, 1-Curves!D110), 1) -> 0.9998408299 | E110: =IF(Items!E$5, IF(Items!E$6, Curves!E110, 1-Curves!E110), 1) -> 0.000327653732 | F110: =IF(Items!F$5, IF(Items!F$6, Curves!F110, 1-Curves!F110), 1) -> 0.9734030064 | G110: 2.218632649e-11
A111: 4.9 | B111: =IF(Items!B$5, IF(Items!B$6, Curves!B111, 1-Curves!B111), 1) -> 9.540071859e-06 | C111: =IF(Items!C$5, IF(Items!C$6, Curves!C111, 1-Curves!C111), 1) -> 0.005626869724 | D111: =IF(Items!D$5, IF(Items!D$6, Curves!D111, 1-Curves!D111), 1) -> 0.9998670461 | E111: =IF(Items!E$5, IF(Items!E$6, Curves!E111, 1-Curves!E111), 1) -> 0.0002682801044 | F111: =IF(Items!F$5, IF(Items!F$6, Curves!F111, 1-Curves!F111), 1) -> 0.9763394218 | G111: 1.405885828e-11
A112: 5 | B112: =IF(Items!B$5, IF(Items!B$6, Curves!B112, 1-Curves!B112), 1) -> 8.04863498e-06 | C112: =IF(Items!C$5, IF(Items!C$6, Curves!C112, 1-Curves!C112), 1) -> 0.005145686774 | D112: =IF(Items!D$5, IF(Items!D$6, Curves!D112, 1-Curves!D112), 1) -> 0.9998889449 | E112: =IF(Items!E$5, IF(Items!E$6, Curves!E112, 1-Curves!E112), 1) -> 0.0002196625249 | F112: =IF(Items!F$5, IF(Items!F$6, Curves!F112, 1-Curves!F112), 1) -> 0.978958653 | G112: 8.905076725e-12
A113: 5.1 | B113: =IF(Items!B$5, IF(Items!B$6, Curves!B113, 1-Curves!B113), 1) -> 6.790358698e-06 | C113: =IF(Items!C$5, IF(Items!C$6, Curves!C113, 1-Curves!C113), 1) -> 0.004705408545 | D113: =IF(Items!D$5, IF(Items!D$6, Curves!D113, 1-Curves!D113), 1) -> 0.9999072371 | E113: =IF(Items!E$5, IF(Items!E$6, Curves!E113, 1-Curves!E113), 1) -> 0.0001798534162 | F113: =IF(Items!F$5, IF(Items!F$6, Curves!F113, 1-Curves!F113), 1) -> 0.98129349 | G113: 5.638549195e-12
A114: 5.2 | B114: =IF(Items!B$5, IF(Items!B$6, Curves!B114, 1-Curves!B114), 1) -> 5.728792807e-06 | C114: =IF(Items!C$5, IF(Items!C$6, Curves!C114, 1-Curves!C114), 1) -> 0.004302597739 | D114: =IF(Items!D$5, IF(Items!D$6, Curves!D114, 1-Curves!D114), 1) -> 0.9999225166 | E114: =IF(Items!E$5, IF(Items!E$6, Curves!E114, 1-Curves!E114), 1) -> 0.000147257524 | F114: =IF(Items!F$5, IF(Items!F$6, Curves!F114, 1-Curves!F114), 1) -> 0.9833736439 | G114: 3.569079866e-12
A115: 5.3 | B115: =IF(Items!B$5, IF(Items!B$6, Curves!B115, 1-Curves!B115), 1) -> 4.833185262e-06 | C115: =IF(Items!C$5, IF(Items!C$6, Curves!C115, 1-Curves!C115), 1) -> 0.003934099343 | D115: =IF(Items!D$5, IF(Items!D$6, Curves!D115, 1-Curves!D115), 1) -> 0.9999352795 | E115: =IF(Items!E$5, IF(Items!E$6, Curves!E115, 1-Curves!E115), 1) -> 0.0001205682864 | F115: =IF(Items!F$5, IF(Items!F$6, Curves!F115, 1-Curves!F115), 1) -> 0.9852259683 | G115: 2.258497402e-12
A116: 5.4 | B116: =IF(Items!B$5, IF(Items!B$6, Curves!B116, 1-Curves!B116), 1) -> 4.077591438e-06 | C116: =IF(Items!C$5, IF(Items!C$6, Curves!C116, 1-Curves!C116), 1) -> 0.003597018529 | D116: =IF(Items!D$5, IF(Items!D$6, Curves!D116, 1-Curves!D116), 1) -> 0.9999459402 | E116: =IF(Items!E$5, IF(Items!E$6, Curves!E116, 1-Curves!E116), 1) -> 9.871566079e-05 | F116: =IF(Items!F$5, IF(Items!F$6, Curves!F116, 1-Curves!F116), 1) -> 0.9868746817 | G116: 1.428798447e-12
A117: 5.5 | B117: =IF(Items!B$5, IF(Items!B$6, Curves!B117, 1-Curves!B117), 1) -> 3.440122626e-06 | C117: =IF(Items!C$5, IF(Items!C$6, Curves!C117, 1-Curves!C117), 1) -> 0.003288700098 | D117: =IF(Items!D$5, IF(Items!D$6, Curves!D117, 1-Curves!D117), 1) -> 0.9999548451 | E117: =IF(Items!E$5, IF(Items!E$6, Curves!E117, 1-Curves!E117), 1) -> 8.082335513e-05 | F117: =IF(Items!F$5, IF(Items!F$6, Curves!F117, 1-Curves!F117), 1) -> 0.9883415834 | G117: 9.036963474e-13
A118: 5.6 | B118: =IF(Items!B$5, IF(Items!B$6, Curves!B118, 1-Curves!B118), 1) -> 2.902311985e-06 | C118: =IF(Items!C$5, IF(Items!C$6, Curves!C118, 1-Curves!C118), 1) -> 0.003006709407 | D118: =IF(Items!D$5, IF(Items!D$6, Curves!D118, 1-Curves!D118), 1) -> 0.9999622831 | E118: =IF(Items!E$5, IF(Items!E$6, Curves!E118, 1-Curves!E118), 1) -> 6.617377828e-05 | F118: =IF(Items!F$5, IF(Items!F$6, Curves!F118, 1-Curves!F118), 1) -> 0.9896462625 | G118: 5.714590197e-13
A119: 5.7 | B119: =IF(Items!B$5, IF(Items!B$6, Curves!B119, 1-Curves!B119), 1) -> 2.44857962e-06 | C119: =IF(Items!C$5, IF(Items!C$6, Curves!C119, 1-Curves!C119), 1) -> 0.002748814678 | D119: =IF(Items!D$5, IF(Items!D$6, Curves!D119, 1-Curves!D119), 1) -> 0.999968496 | E119: =IF(Items!E$5, IF(Items!E$6, Curves!E119, 1-Curves!E119), 1) -> 5.41793197e-05 | F119: =IF(Items!F$5, IF(Items!F$6, Curves!F119, 1-Curves!F119), 1) -> 0.9908062946 | G119: 3.613002931e-13
A120: 5.8 | B120: =IF(Items!B$5, IF(Items!B$6, Curves!B120, 1-Curves!B120), 1) -> 2.065781266e-06 | C120: =IF(Items!C$5, IF(Items!C$6, Curves!C120, 1-Curves!C120), 1) -> 0.002512970628 | D120: =IF(Items!D$5, IF(Items!D$6, Curves!D120, 1-Curves!D120), 1) -> 0.9999736855 | E120: =IF(Items!E$5, IF(Items!E$6, Curves!E120, 1-Curves!E120), 1) -> 4.435881978e-05 | F120: =IF(Items!F$5, IF(Items!F$6, Curves!F120, 1-Curves!F120), 1) -> 0.9918374288 | G120: 2.283919511e-13
A121: 5.9 | B121: =IF(Items!B$5, IF(Items!B$6, Curves!B121, 1-Curves!B121), 1) -> 1.742827536e-06 | C121: =IF(Items!C$5, IF(Items!C$6, Curves!C121, 1-Curves!C121), 1) -> 0.002297303325 | D121: =IF(Items!D$5, IF(Items!D$6, Curves!D121, 1-Curves!D121), 1) -> 0.9999780202 | E121: =IF(Items!E$5, IF(Items!E$6, Curves!E121, 1-Curves!E121), 1) -> 3.631829496e-05 | F121: =IF(Items!F$5, IF(Items!F$6, Curves!F121, 1-Curves!F121), 1) -> 0.9927537604 | G121: 1.44354458e-13
A122: 6 | B122: =IF(Items!B$5, IF(Items!B$6, Curves!B122, 1-Curves!B122), 1) -> 1.470362674e-06 | C122: =IF(Items!C$5, IF(Items!C$6, Curves!C122, 1-Curves!C122), 1) -> 0.002100096205 | D122: =IF(Items!D$5, IF(Items!D$6, Curves!D122, 1-Curves!D122), 1) -> 0.9999816408 | E122: =IF(Items!E$5, IF(Items!E$6, Curves!E122, 1-Curves!E122), 1) -> 2.973514968e-05 | F122: =IF(Items!F$5, IF(Items!F$6, Curves!F122, 1-Curves!F122), 1) -> 0.9935678915 | G122: 9.122699376e-14
